Workbook

Sheet 1TA
A2: N° | B2: Alunno | C2: Presente | D2: Sex | E2: Anno | F2: Peso | G2: Statura | H2: BMI | I2: S/D | K2: Sportivo-Nsportivo-Intermedio | N2: Flessibilità | O2: Ldf | P2: Velocità | Q2: Destrezza | R2: Volley | S2: Basket | T2: Note
A3: 1 | C3: X | D3: M | E3: 2002 | F3: 78.9 | G3: 170 | H3: =IF(C3 = "X",F3/(G3/100)^2,"") -> 27.30103806 | I3: D | K3: S | N3: 0 | O3: 150 | P3: 575 | Q3: 2866 | R3: + | S3: = | T3: =IF(AND(C3<>"X",B3<>""),"Assente",IF(AND(B3="",C3="X"),"??","")) -> ?? | U3: =IF(AND(C3="X",D3="M"),IF(H3<>"",IF(H3<20.7,"Sottopeso",IF(H3>27.8,"Sovrappeso","Normopeso")),""),IF(AND(C3="X",D3="F"),IF(H3<>"",IF(H3<19.1,"Sottopeso",IF(H3>27.3,"Sovrappeso","Normopeso")),""),"")) -> Normopeso
A4: 2 | C4: X | D4: M | E4: 2001 | F4: 73.7 | G4: 176 | H4: =IF(C4 = "X",F4/(G4/100)^2,"") -> 23.79261364 | I4: D | K4: I | N4: -31 | O4: 167 | P4: 616 | T4: =IF(AND(C4<>"X",B4<>""),"Assente",IF(AND(B4="",C4="X"),"??","")) -> ?? | U4: =IF(AND(C4="X",D4="M"),IF(H4<>"",IF(H4<20.7,"Sottopeso",IF(H4>27.8,"Sovrappeso","Normopeso")),""),IF(AND(C4="X",D4="F"),IF(H4<>"",IF(H4<19.1,"Sottopeso",IF(H4>27.3,"Sovrappeso","Normopeso")),""),"")) -> Normopeso
A5: 3 | C5: X | D5: M | E5: 2001 | F5: 62.4 | G5: 172 | H5: 21.09248242 | I5: D | K5: S | N5: 0 | O5: 194 | P5: 462 | Q5: 2238 | R5: + | S5: + | T5: ?? | U5: Normopeso
A6: 4 | C6: X | D6: M | E6: 1998 | F6: 80.2 | G6: 179 | H6: 25.03042976 | I6: D | K6: N | N6: 0 | O6: 225 | P6: 503 | Q6: 2369 | R6: + | S6: + | T6: ?? | U6: Normopeso
A7: 5 | D7: M | E7: 2001
A8: 6 | C8: X | D8: M | E8: 2001 | F8: 53.7 | G8: 172 | H8: 18.15170362 | I8: D | K8: S | N8: -23 | O8: 214 | P8: 462 | Q8: 2334 | R8: + | S8: = | T8: ?? | U8: Sottopeso
A9: 7 | C9: X | D9: M | E9: 2001 | F9: 48.1 | G9: 170 | H9: 16.64359862 | I9: D | K9: S | N9: -15 | O9: 201 | P9: 525 | Q9: 2745 | R9: + | S9: = | T9: ?? | U9: Sottopeso
A10: 8 | C10: X | D10: M | E10: 2000 | F10: 68.2 | G10: 172 | H10: 23.05300162 | I10: D | K10: N | N10: -19 | O10: 154 | P10: 650 | Q10: 3131 | R10: + | S10: = | T10: ?? | U10: Normopeso
A11: 9 | C11: X | D11: M | E11: 2001 | F11: 75.8 | G11: 171 | H11: 25.92250607 | I11: D | K11: I | N11: 18 | O11: 166 | P11: 590 | Q11: 2903 | R11: = | S11: = | T11: ?? | U11: Normopeso
A12: 10 | D12: M | E12: 2000
A13: 11 | C13: X | D13: M | E13: 2002 | F13: 90 | G13: 178 | H13: 28.40550436 | I13: D | K13: I | N13: #-13 | O13: 134# | P13: 747# | Q13: 3700# | R13: - | S13: - | T13: ?? | U13: Sovrappeso
A14: 12 | C14: X | D14: M | E14: 2001 | F14: 57.2 | G14: 174 | H14: 18.89285242 | I14: D | K14: I | N14: -9 | O14: 174 | P14: 507 | Q14: 2353 | R14: + | S14: + | T14: ?? | U14: Sottopeso
A15: 13 | C15: X | D15: M | E15: 1999 | F15: 79.1 | G15: 178 | H15: 24.96528216 | I15: S | K15: N | N15: -14 | O15: 178 | P15: 631 | Q15: 3278 | R15: = | S15: - | T15: ?? | U15: Normopeso
A16: 14 | C16: X | D16: M | E16: 2001 | F16: 48.5 | G16: 158 | H16: 19.42797629 | I16: D | K16: S | N16: -21 | O16: 183 | P16: 531 | Q16: 2447 | R16: - | S16: + | T16: ?? | U16: Sottopeso
A17: 15 | C17: X | D17: M | E17: 2001 | F17: 45.7 | G17: 157 | H17: 18.54030589 | I17: D | K17: S | N17: -20 | O17: 195 | P17: 516 | Q17: 2431 | R17: + | S17: = | T17: ?? | U17: Sottopeso
A18: 16 | C18: X | D18: F | E18: 2001 | F18: 58.2 | G18: 156 | H18: 23.91518738 | I18: D | K18: S | N18: 22 | T18: ?? | U18: Normopeso
A19: 17 | C19: X | D19: M | E19: 2001 | F19: 52.7 | G19: 158 | H19: 21.11039897 | I19: D | K19: I | N19: -15 | O19: 172 | P19: 506 | Q19: 2231 | R19: = | S19: - | T19: ?? | U19: Normopeso
A20: 18 | C20: X | D20: M | E20: 2001 | F20: 70 | G20: 170 | H20: 24.22145329 | I20: D | K20: I | N20: 6 | O20: 215 | P20: 478 | Q20: 2350 | R20: ++ | S20: = | T20: ?? | U20: Normopeso
A21: 19 | D21: M | E21: 2001
A22: 20 | D22: M | E22: 1999
A23: 21 | C23: X | D23: M | E23: 2000 | F23: 47 | G23: 162 | H23: 17.90885536 | I23: D | K23: S | N23: 1 | O23: 191 | P23: 487 | Q23: 2241 | R23: + | S23: + | T23: ?? | U23: Sottopeso
A24: 22 | C24: X | D24: M | E24: 2000 | F24: 68.5 | G24: 163 | H24: 25.78192631 | I24: D | K24: S | N24: -18 | O24: 176 | P24: 491 | Q24: 2331 | R24: + | S24: ++ | T24: ?? | U24: Normopeso
A25: 23 | D25: M | E25: 2002
A26: 24 | C26: X | D26: M | E26: 2001 | F26: 58.5 | G26: 169 | H26: 20.4824761 | I26: D | K26: S | N26: 9 | O26: 225 | P26: 457 | Q26: 2125 | R26: + | S26: ++ | T26: ?? | U26: Sottopeso
A27: 25
A28: 26
A29: 27
A30: 28
A31: 29
A32: 30
B35: Alunni : | C35: =COUNTIF(B3:B32,"<>"&"") -> 0 | I35: Dx | J35: Sx | K35: S | L35: NS | M35: I
B36: Media | C36: =COUNTIF(C3:C32,"X")/C35 ->  | D36: =(COUNTIFS(D3:D32,"M",C3:C32,"X")+COUNTIFS(D3:D32,"F",C3:C32,"X"))/C39 -> 1 | E36: =AVERAGE(E3:E32) -> 2000.666667 | F36: =AVERAGEIFS(F3:F32,C3:C32,"X") -> 64.02105263 | G36: =AVERAGEIFS(G3:G32,C3:C32,"X") -> 168.6842105 | H36: =AVERAGEIFS(H3:H32,C3:C32,"X") -> 22.34945223 | I36: =(COUNTIFS(I3:I32,"D",C3:C32,"X")/C39) -> 0.9473684211 | J36: =(COUNTIFS(I3:I32,"S",C3:C32,"X")/C39) -> 0.05263157895 | K36: =(COUNTIFS(K3:K32,"S",C3:C32,"X")/C39) -> 0.5263157895 | L36: =(COUNTIFS(K3:K32,"N",C3:C32,"X")/C39) -> 0.1578947368 | M36: =(COUNTIFS(K3:K32,"I",C3:C32,"X")/C39) -> 0.3157894737 | N36: =AVERAGEIFS(N3:N32,C3:C32,"X") -> -7.166666667 | O36: =AVERAGEIFS(O3:O32,C3:C32,"X") -> 187.0588235 | P36: =AVERAGEIFS(P3:P32,C3:C32,"X") -> 528.6470588 | Q36: =AVERAGEIFS(Q3:Q32,C3:C32,"X") -> 2523.3125 | R36: =COUNTIF(R$3:R$32,"=++")/COUNTIFS(R$3:R$32,"<>X",R$3:R$32,"<>") -> 0.05882352941 | S36: =COUNTIF(S$3:S$32,"=++")/COUNTIFS(S$3:S$32,"<>X",S$3:S$32,"<>") -> 0.1176470588
B37: Media maschi | C37: =COUNTIFS(C3:C32,"X",D3:D32,"M")/C35 ->  | D37: =COUNTIFS(D3:D32,"M",C3:C32,"X")/C39 -> 0.9473684211 | E37: =AVERAGEIFS(E3:E32,C3:C32,"X",D3:D32,"M") -> 2000.666667 | F37: =AVERAGEIFS(F3:F32,C3:C32,"X",D3:D32,"M") -> 64.34444444 | G37: =AVERAGEIFS(G3:G32,C3:C32,"X",D3:D32,"M") -> 169.3888889 | H37: =AVERAGEIFS(H3:H32,C3:C32,"X",D3:D32,"M") -> 22.26246694 | I37: =(COUNTIFS(I3:I32,"D",C3:C32,"X",D3:D32,"M")/COUNTIFS(D3:D32,"M",C3:C32,"X")) -> 0.9444444444 | J37: =(COUNTIFS(I3:I32,"S",C3:C32,"X",D3:D32,"M")/COUNTIFS(D3:D32,"M",C3:C32,"X")) -> 0.05555555556 | K37: =(COUNTIFS(K3:K32,"S",C3:C32,"X",D3:D32,"M")/COUNTIFS(D3:D32,"M",C3:C32,"X")) -> 0.5 | L37: =(COUNTIFS(K3:K32,"N",C3:C32,"X",D3:D32,"M")/COUNTIFS(D3:D32,"M",C3:C32,"X")) -> 0.1666666667 | M37: =(COUNTIFS(K3:K32,"I",C3:C32,"X",D3:D32,"M")/COUNTIFS(D3:D32,"M",C3:C32,"X")) -> 0.3333333333 | N37: =AVERAGEIFS(N3:N32,C3:C32,"X",D3:D32,"M") -> -8.882352941 | O37: =AVERAGEIFS(O3:O32,C3:C32,"X",D3:D32,"M") -> 187.0588235 | P37: =AVERAGEIFS(P3:P32,C3:C32,"X",D3:D32,"M") -> 528.6470588 | Q37: =AVERAGEIFS(Q3:Q32,C3:C32,"X",D3:D32,"M") -> 2523.3125 | R37: =COUNTIF(R$3:R$32,"=+")/COUNTIFS(R$3:R$32,"<>X",R$3:R$32,"<>") -> 0.6470588235 | S37: =COUNTIF(S$3:S$32,"=+")/COUNTIFS(S$3:S$32,"<>X",S$3:S$32,"<>") -> 0.2941176471
B38: Media femmine | C38: =COUNTIFS(C4:C32,"X",D4:D32,"F")/C35 ->  | D38: =COUNTIFS(D3:D32,"F",C3:C32,"X")/C39 -> 0.05263157895 | E38: =AVERAGEIFS(E3:E32,C3:C32,"X",D3:D32,"F") -> 2001 | F38: =AVERAGEIFS(F3:F32,C3:C32,"X",D3:D32,"F") -> 58.2 | G38: =AVERAGEIFS(G3:G32,C3:C32,"X",D3:D32,"F") -> 156 | H38: =AVERAGEIFS(H3:H32,C3:C32,"X",D3:D32,"F") -> 23.91518738 | I38: =(COUNTIFS(I3:I32,"D",C3:C32,"X",D3:D32,"F")/COUNTIFS(D3:D32,"F",C3:C32,"X")) -> 1 | J38: =(COUNTIFS(I3:I32,"S",C3:C32,"X",D3:D32,"F")/COUNTIFS(D3:D32,"F",C3:C32,"X")) -> 0 | K38: =(COUNTIFS(K3:K32,"S",C3:C32,"X",D3:D32,"F")/COUNTIFS(D3:D32,"F",C3:C32,"X")) -> 1 | L38: =(COUNTIFS(K3:K32,"N",C3:C32,"X",D3:D32,"F")/COUNTIFS(D3:D32,"F",C3:C32,"X")) -> 0 | M38: =(COUNTIFS(K3:K32,"N",C3:C32,"X",D3:D32,"F")/COUNTIFS(D3:D32,"F",C3:C32,"X")) -> 0 | N38: =AVERAGEIFS(N3:N32,C3:C32,"X",D3:D32,"F") -> 22 | O38: =AVERAGEIFS(O3:O32,C3:C32,"X",D3:D32,"F") ->  | P38: =AVERAGEIFS(P3:P32,C3:C32,"X",D3:D32,"F") ->  | Q38: =AVERAGEIFS(Q3:Q32,C3:C32,"X",D3:D32,"F") ->  | R38: =COUNTIF(R$3:R$32,"==")/COUNTIFS(R$3:R$32,"<>X",R$3:R$32,"<>") -> 0.1764705882 | S38: =COUNTIF(S$3:S$32,"==")/COUNTIFS(S$3:S$32,"<>X",S$3:S$32,"<>") -> 0.4117647059
B39: Presenti | C39: =COUNTIF(C3:C32,"X") -> 19 | N39: Record | R39: =COUNTIF(R$3:R$32,"-")/COUNTIFS(R$3:R$32,"<>X",R$3:R$32,"<>") -> 0.1176470588 | S39: =COUNTIF(S$3:S$32,"-")/COUNTIFS(S$3:S$32,"<>X",S$3:S$32,"<>") -> 0.1764705882
N40: =MAX(N3:N32) -> 22 | O40: =MAX(O3:O32) -> 225 | P40: =MIN(P3:P32) -> 457 | Q40: =MIN(Q3:Q32) -> 2125 | R40: =COUNTIF(R$3:R$32,"--")/COUNTIFS(R$3:R$32,"<>X",R$3:R$32,"<>") -> 0 | S40: =COUNTIF(S$3:S$32,"--")/COUNTIFS(S$3:S$32,"<>X",S$3:S$32,"<>") -> 0
N41: =INDEX(B3:B32,MATCH(N40,N3:N32,0),1) -> 0 | O41: =INDEX(B3:B32,MATCH(O40,O3:O32,0),1) -> 0 | P41: =INDEX(B3:B32,MATCH(P40,P3:P32,0),1) -> 0 | Q41: =INDEX(B3:B32,MATCH(Q40,Q3:Q32,0),1) -> 0

Sheet 1HB
A1: 1HB
A2: N° | B2: Alunno | C2: Presente | D2: Sex | E2: Anno | F2: Peso | G2: Statura | H2: BMI | I2: S/D | K2: Sportivo-Nsportivo-Intermedio | N2: Flessibilità | O2: Ldf | P2: Velocità | Q2: Destrezza | R2: Volley | S2: Basket | T2: Note
A3: 1 | C3: X | D3: F | E3: 2001 | F3: 53.2 | G3: 169 | H3: =IF(C3 = "X",F3/(G3/100)^2,"") -> 18.62679878 | I3: D | K3: N | N3: -30 | T3: =IF(AND(C3<>"X",B3<>""),"Assente",IF(AND(B3="",C3="X"),"??","")) -> ?? | U3: =IF(AND(C3="X",D3="M"),IF(H3<>"",IF(H3<20.7,"Sottopeso",IF(H3>27.8,"Sovrappeso","Normopeso")),""),IF(AND(C3="X",D3="F"),IF(H3<>"",IF(H3<19.1,"Sottopeso",IF(H3>27.3,"Sovrappeso","Normopeso")),""),"")) -> Sottopeso
A4: 2 | C4: X | D4: M | E4: 1999 | F4: 75.3 | G4: 172 | H4: =IF(C4 = "X",F4/(G4/100)^2,"") -> 25.45294754 | I4: D | K4: I | N4: 0 | T4: =IF(AND(C4<>"X",B4<>""),"Assente",IF(AND(B4="",C4="X"),"??","")) -> ?? | U4: =IF(AND(C4="X",D4="M"),IF(H4<>"",IF(H4<20.7,"Sottopeso",IF(H4>27.8,"Sovrappeso","Normopeso")),""),IF(AND(C4="X",D4="F"),IF(H4<>"",IF(H4<19.1,"Sottopeso",IF(H4>27.3,"Sovrappeso","Normopeso")),""),"")) -> Normopeso
A5: 3 | C5: X | D5: M | E5: 2001 | F5: 48.7 | G5: 161 | H5: 18.78785541 | I5: D | K5: S | N5: -27 | T5: ?? | U5: Sottopeso
A6: 4 | C6: X | D6: M | E6: 1999 | F6: 59.4 | G6: 164 | H6: 22.08506841 | I6: D | K6: I | N6: -2 | T6: ?? | U6: Normopeso
A7: 5 | C7: X | D7: M | E7: 2001 | F7: 65.2 | G7: 171 | H7: 22.29745905 | I7: D | K7: I | N7: -5 | T7: ?? | U7: Normopeso
A8: 6 | D8: M | E8: 2001
A9: 7 | C9: X | D9: M | E9: 2001 | F9: 90.7 | G9: 175 | H9: 29.61632653 | I9: S | K9: I | N9: -14 | T9: ?? | U9: Sovrappeso
A10: 8 | C10: X | D10: M | E10: 2001 | F10: 69.7 | G10: 163 | H10: 26.23358049 | I10: D | K10: I | N10: -15 | T10: ?? | U10: Normopeso
A11: 9 | C11: X | D11: M | E11: 2001 | F11: 57.8 | G11: 174 | H11: 19.0910292 | I11: D | K11: I | N11: -7 | T11: ?? | U11: Sottopeso
A12: 10 | C12: X | D12: M | E12: 2001 | F12: 66.7 | G12: 176 | H12: 21.53279959 | I12: D | K12: S | N12: 3 | T12: ?? | U12: Normopeso
A13: 11 | C13: X | D13: M | E13: 2001 | F13: 57.3 | G13: 152 | H13: 24.80090028 | I13: D | K13: I | N13: 4 | T13: ?? | U13: Normopeso
A14: 12 | C14: X | D14: M | E14: 2001 | F14: 44.3 | G14: 161 | H14: 17.09039003 | I14: D | K14: I | N14: -2 | T14: ?? | U14: Sottopeso
A15: 13 | C15: X | D15: M | E15: 2002 | F15: 63.2 | G15: 168 | H15: 22.39229025 | I15: D | K15: S | N15: 5 | T15: ?? | U15: Normopeso
A16: 14 | C16: X | D16: M | E16: 2000 | F16: 68.1 | G16: 172 | H16: 23.01919957 | I16: D | K16: S | N16: 20 | T16: ?? | U16: Normopeso
A17: 15 | C17: X | D17: M | E17: 1999 | F17: 59 | G17: 166 | H17: 21.41094498 | I17: D | K17: S | N17: -14 | T17: ?? | U17: Normopeso
A18: 16 | C18: X | D18: M | E18: 2001 | F18: 63.4 | G18: 175 | H18: 20.70204082 | I18: D | K18: P | N18: 2 | T18: ?? | U18: Normopeso
A19: 17 | C19: X | D19: M | E19: 2001 | F19: 68.8 | G19: 162 | H19: 26.21551593 | I19: D | K19: S | N19: -5 | T19: ?? | U19: Normopeso
A20: 18 | C20: X | D20: M | E20: 2001 | F20: 47.2 | G20: 154 | H20: =IF(C20 = "X",F20/(G20/100)^2,"") -> 19.90217575 | I20: D | K20: S | N20: -14 | T20: =IF(AND(C20<>"X",B20<>""),"Assente",IF(AND(B20="",C20="X"),"??","")) -> ?? | U20: =IF(AND(C20="X",D20="M"),IF(H20<>"",IF(H20<20.7,"Sottopeso",IF(H20>27.8,"Sovrappeso","Normopeso")),""),IF(AND(C20="X",D20="F"),IF(H20<>"",IF(H20<19.1,"Sottopeso",IF(H20>27.3,"Sovrappeso","Normopeso")),""),"")) -> Sottopeso
A21: 19 | C21: X | D21: M | E21: 2000 | F21: 59.1 | G21: 166 | H21: =IF(C21 = "X",F21/(G21/100)^2,"") -> 21.44723472 | I21: D | K21: I | N21: 10 | T21: =IF(AND(C21<>"X",B21<>""),"Assente",IF(AND(B21="",C21="X"),"??","")) -> ?? | U21: =IF(AND(C21="X",D21="M"),IF(H21<>"",IF(H21<20.7,"Sottopeso",IF(H21>27.8,"Sovrappeso","Normopeso")),""),IF(AND(C21="X",D21="F"),IF(H21<>"",IF(H21<19.1,"Sottopeso",IF(H21>27.3,"Sovrappeso","Normopeso")),""),"")) -> Normopeso
A22: 20 | C22: X | D22: M | E22: 1999 | F22: 53.5 | G22: 164 | H22: =IF(C22 = "X",F22/(G22/100)^2,"") -> 19.89143367 | I22: D | K22: I | T22: =IF(AND(C22<>"X",B22<>""),"Assente",IF(AND(B22="",C22="X"),"??","")) -> ?? | U22: =IF(AND(C22="X",D22="M"),IF(H22<>"",IF(H22<20.7,"Sottopeso",IF(H22>27.8,"Sovrappeso","Normopeso")),""),IF(AND(C22="X",D22="F"),IF(H22<>"",IF(H22<19.1,"Sottopeso",IF(H22>27.3,"Sovrappeso","Normopeso")),""),"")) -> Sottopeso
A23: 21 | C23: X | D23: M | E23: 1997 | F23: 100 | G23: 170 | H23: =IF(C23 = "X",F23/(G23/100)^2,"") -> 34.60207612 | I23: D | K23: I | N23: 3 | T23: =IF(AND(C23<>"X",B23<>""),"Assente",IF(AND(B23="",C23="X"),"??","")) -> ?? | U23: =IF(AND(C23="X",D23="M"),IF(H23<>"",IF(H23<20.7,"Sottopeso",IF(H23>27.8,"Sovrappeso","Normopeso")),""),IF(AND(C23="X",D23="F"),IF(H23<>"",IF(H23<19.1,"Sottopeso",IF(H23>27.3,"Sovrappeso","Normopeso")),""),"")) -> Sovrappeso
A24: 22 | H24: =IF(C24 = "X",F24/(G24/100)^2,"") ->  | T24: =IF(AND(C24<>"X",B24<>""),"Assente",IF(AND(B24="",C24="X"),"??","")) ->  | U24: =IF(AND(C24="X",D24="M"),IF(H24<>"",IF(H24<20.7,"Sottopeso",IF(H24>27.8,"Sovrappeso","Normopeso")),""),IF(AND(C24="X",D24="F"),IF(H24<>"",IF(H24<19.1,"Sottopeso",IF(H24>27.3,"Sovrappeso","Normopeso")),""),"")) -> 
A25: 23
A26: 24
A27: 25
A28: 26
A29: 27
A30: 28
A31: 29
A32: 30
B35: Alunni : | C35: =COUNTIF(B3:B32,"<>"&"") -> 0 | I35: Dx | J35: Sx | K35: S | L35: NS | M35: I
B36: Media | C36: =COUNTIF(C3:C32,"X")/C35 ->  | D36: =(COUNTIFS(D3:D32,"M",C3:C32,"X")+COUNTIFS(D3:D32,"F",C3:C32,"X"))/C39 -> 1 | E36: =AVERAGE(E3:E32) -> 2000.380952 | F36: =AVERAGEIFS(F3:F32,C3:C32,"X") -> 63.53 | G36: =AVERAGEIFS(G3:G32,C3:C32,"X") -> 166.75 | H36: =AVERAGEIFS(H3:H32,C3:C32,"X") -> 22.75990336 | I36: =(COUNTIFS(I3:I32,"D",C3:C32,"X")/C39) -> 0.95 | J36: =(COUNTIFS(I3:I32,"S",C3:C32,"X")/C39) -> 0.05 | K36: =(COUNTIFS(K3:K32,"S",C3:C32,"X")/C39) -> 0.35 | L36: =(COUNTIFS(K3:K32,"N",C3:C32,"X")/C39) -> 0.05 | M36: =(COUNTIFS(K3:K32,"I",C3:C32,"X")/C39) -> 0.55 | N36: =AVERAGEIFS(N3:N32,C3:C32,"X") -> -4.631578947 | O36: =AVERAGEIFS(O3:O32,C3:C32,"X") ->  | P36: =AVERAGEIFS(P3:P32,C3:C32,"X") ->  | Q36: =AVERAGEIFS(Q3:Q32,C3:C32,"X") ->  | R36: =COUNTIF(R$3:R$32,"=++")/COUNTIFS(R$3:R$32,"<>X",R$3:R$32,"<>") ->  | S36: =COUNTIF(S$3:S$32,"=++")/COUNTIFS(S$3:S$32,"<>X",S$3:S$32,"<>") -> 
B37: Media maschi | C37: =COUNTIFS(C3:C32,"X",D3:D32,"M")/C35 ->  | D37: =COUNTIFS(D3:D32,"M",C3:C32,"X")/C39 -> 0.95 | E37: =AVERAGEIFS(E3:E32,C3:C32,"X",D3:D32,"M") -> 2000.315789 | F37: =AVERAGEIFS(F3:F32,C3:C32,"X",D3:D32,"M") -> 64.07368421 | G37: =AVERAGEIFS(G3:G32,C3:C32,"X",D3:D32,"M") -> 166.6315789 | H37: =AVERAGEIFS(H3:H32,C3:C32,"X",D3:D32,"M") -> 22.97743518 | I37: =(COUNTIFS(I3:I32,"D",C3:C32,"X",D3:D32,"M")/COUNTIFS(D3:D32,"M",C3:C32,"X")) -> 0.9473684211 | J37: =(COUNTIFS(I3:I32,"S",C3:C32,"X",D3:D32,"M")/COUNTIFS(D3:D32,"M",C3:C32,"X")) -> 0.05263157895 | K37: =(COUNTIFS(K3:K32,"S",C3:C32,"X",D3:D32,"M")/COUNTIFS(D3:D32,"M",C3:C32,"X")) -> 0.3684210526 | L37: =(COUNTIFS(K3:K32,"N",C3:C32,"X",D3:D32,"M")/COUNTIFS(D3:D32,"M",C3:C32,"X")) -> 0 | M37: =(COUNTIFS(K3:K32,"I",C3:C32,"X",D3:D32,"M")/COUNTIFS(D3:D32,"M",C3:C32,"X")) -> 0.5789473684 | N37: =AVERAGEIFS(N3:N32,C3:C32,"X",D3:D32,"M") -> -3.222222222 | O37: =AVERAGEIFS(O3:O32,C3:C32,"X",D3:D32,"M") ->  | P37: =AVERAGEIFS(P3:P32,C3:C32,"X",D3:D32,"M") ->  | Q37: =AVERAGEIFS(Q3:Q32,C3:C32,"X",D3:D32,"M") ->  | R37: =COUNTIF(R$3:R$32,"=+")/COUNTIFS(R$3:R$32,"<>X",R$3:R$32,"<>") ->  | S37: =COUNTIF(S$3:S$32,"=+")/COUNTIFS(S$3:S$32,"<>X",S$3:S$32,"<>") -> 
B38: Media femmine | C38: =COUNTIFS(C4:C32,"X",D4:D32,"F")/C35 ->  | D38: =COUNTIFS(D3:D32,"F",C3:C32,"X")/C39 -> 0.05 | E38: =AVERAGEIFS(E3:E32,C3:C32,"X",D3:D32,"F") -> 2001 | F38: =AVERAGEIFS(F3:F32,C3:C32,"X",D3:D32,"F") -> 53.2 | G38: =AVERAGEIFS(G3:G32,C3:C32,"X",D3:D32,"F") -> 169 | H38: =AVERAGEIFS(H3:H32,C3:C32,"X",D3:D32,"F") -> 18.62679878 | I38: =(COUNTIFS(I3:I32,"D",C3:C32,"X",D3:D32,"F")/COUNTIFS(D3:D32,"F",C3:C32,"X")) -> 1 | J38: =(COUNTIFS(I3:I32,"S",C3:C32,"X",D3:D32,"F")/COUNTIFS(D3:D32,"F",C3:C32,"X")) -> 0 | K38: =(COUNTIFS(K3:K32,"S",C3:C32,"X",D3:D32,"F")/COUNTIFS(D3:D32,"F",C3:C32,"X")) -> 0 | L38: =(COUNTIFS(K3:K32,"N",C3:C32,"X",D3:D32,"F")/COUNTIFS(D3:D32,"F",C3:C32,"X")) -> 1 | M38: =(COUNTIFS(K3:K32,"N",C3:C32,"X",D3:D32,"F")/COUNTIFS(D3:D32,"F",C3:C32,"X")) -> 1 | N38: =AVERAGEIFS(N3:N32,C3:C32,"X",D3:D32,"F") -> -30 | O38: =AVERAGEIFS(O3:O32,C3:C32,"X",D3:D32,"F") ->  | P38: =AVERAGEIFS(P3:P32,C3:C32,"X",D3:D32,"F") ->  | Q38: =AVERAGEIFS(Q3:Q32,C3:C32,"X",D3:D32,"F") ->  | R38: =COUNTIF(R$3:R$32,"==")/COUNTIFS(R$3:R$32,"<>X",R$3:R$32,"<>") ->  | S38: =COUNTIF(S$3:S$32,"==")/COUNTIFS(S$3:S$32,"<>X",S$3:S$32,"<>") -> 
B39: Presenti | C39: =COUNTIF(C3:C32,"X") -> 20 | N39: Record | R39: =COUNTIF(R$3:R$32,"-")/COUNTIFS(R$3:R$32,"<>X",R$3:R$32,"<>") ->  | S39: =COUNTIF(S$3:S$32,"-")/COUNTIFS(S$3:S$32,"<>X",S$3:S$32,"<>") -> 
N40: =MAX(N3:N32) -> 20 | O40: =MAX(O3:O32) -> 0 | P40: =MIN(P3:P32) -> 0 | Q40: =MIN(Q3:Q32) -> 0 | R40: =COUNTIF(R$3:R$32,"--")/COUNTIFS(R$3:R$32,"<>X",R$3:R$32,"<>") ->  | S40: =COUNTIF(S$3:S$32,"--")/COUNTIFS(S$3:S$32,"<>X",S$3:S$32,"<>") -> 
N41: =INDEX(B3:B32,MATCH(N40,N3:N32,0),1) -> 0 | O41: =INDEX(B3:B32,MATCH(O40,O3:O32,0),1) ->  | P41: =INDEX(B3:B32,MATCH(P40,P3:P32,0),1) ->  | Q41: =INDEX(B3:B32,MATCH(Q40,Q3:Q32,0),1) -> 

Sheet 1LA
A2: N° | B2: Alunno | C2: Presente | D2: Sex | E2: Anno | F2: Peso | G2: Statura | H2: BMI | I2: S/D | K2: Sportivo-Nsportivo-Intermedio | N2: Flessibilità | O2: Ldf | P2: Velocità | Q2: Destrezza | R2: Volley | S2: Basket | T2: Note
A3: 1 | C3: X | D3: M | E3: 2001 | F3: 63.6 | G3: 168 | H3: =IF(C3 = "X",F3/(G3/100)^2,"") -> 22.53401361 | I3: S | K3: S | N3: -14 | O3: 184 | P3: 504 | Q3: 2334 | R3: = | S3: ++ | T3: =IF(AND(C3<>"X",B3<>""),"Assente",IF(AND(B3="",C3="X"),"??","")) -> ?? | U3: =IF(AND(C3="X",D3="M"),IF(H3<>"",IF(H3<20.7,"Sottopeso",IF(H3>27.8,"Sovrappeso","Normopeso")),""),IF(AND(C3="X",D3="F"),IF(H3<>"",IF(H3<19.1,"Sottopeso",IF(H3>27.3,"Sovrappeso","Normopeso")),""),"")) -> Normopeso
A4: 2 | C4: X | D4: F | E4: 2001 | F4: 48 | G4: 157 | H4: =IF(C4 = "X",F4/(G4/100)^2,"") -> 19.47340663 | I4: D | K4: N | N4: -2 | O4: 131 | P4: 603 | Q4: 3087 | R4: = | S4: = | T4: =IF(AND(C4<>"X",B4<>""),"Assente",IF(AND(B4="",C4="X"),"??","")) -> ?? | U4: =IF(AND(C4="X",D4="M"),IF(H4<>"",IF(H4<20.7,"Sottopeso",IF(H4>27.8,"Sovrappeso","Normopeso")),""),IF(AND(C4="X",D4="F"),IF(H4<>"",IF(H4<19.1,"Sottopeso",IF(H4>27.3,"Sovrappeso","Normopeso")),""),"")) -> Normopeso
A5: 3 | C5: X | D5: F | E5: 2001 | F5: 42.9 | G5: 154 | H5: 18.0890538 | I5: D | K5: I | N5: 1 | O5: 152 | P5: 575 | Q5: 2681 | R5: = | S5: ++ | T5: ?? | U5: Sottopeso
A6: 4 | C6: X | D6: F | E6: 2001 | F6: 69.9 | G6: 161 | H6: 26.96655222 | I6: D | K6: I | N6: 0 | O6: 111 | P6: 656 | Q6: 3347 | R6: - | S6: = | T6: ?? | U6: Normopeso
A7: 5 | C7: X | D7: F | E7: 2001 | F7: 54.7 | G7: 151 | H7: 23.99017587 | I7: D | K7: I | N7: 0 | O7: 122 | P7: 590 | Q7: 2910 | R7: + | S7: + | T7: ?? | U7: Normopeso
A8: 6 | C8: X | D8: M | E8: 2001 | F8: 52.5 | G8: 166 | H8: 19.05211206 | I8: D | K8: S | N8: -10 | O8: 223 | P8: 472 | Q8: 2097 | R8: + | S8: = | T8: ?? | U8: Sottopeso
A9: 7 | C9: X | D9: F | E9: 2001 | F9: 62.3 | G9: 160 | H9: 24.3359375 | I9: D | K9: I | N9: 12 | O9: 163 | P9: 519 | Q9: 2456 | R9: ++ | S9: = | T9: ?? | U9: Normopeso
A10: 8 | C10: X | D10: F | E10: 2001 | F10: 35.6 | G10: 149 | H10: 16.03531372 | I10: D | K10: I | N10: 4 | O10: 150 | P10: 530 | Q10: 2765 | R10: + | S10: - | T10: ?? | U10: Sottopeso
A11: 9 | C11: X | D11: F | E11: 2001 | F11: 32.3 | G11: 162 | H11: 12.30757506 | I11: D | K11: I | N11: -7 | O11: 123 | P11: 629 | Q11: 3540 | R11: - | S11: = | T11: ?? | U11: Sottopeso
A12: 10 | C12: X | D12: M | E12: 2001 | F12: 57.2 | G12: 170 | H12: 19.79238754 | I12: D | K12: S | N12: 11 | O12: 200 | P12: 475 | Q12: 2306 | R12: + | S12: = | T12: ?? | U12: Sottopeso
A13: 11 | C13: X | D13: M | E13: 2001 | F13: 59.3 | G13: 168 | H13: 21.01048753 | I13: D | K13: S | N13: -6 | O13: 178 | P13: 506 | Q13: 2338 | R13: = | S13: = | T13: ?? | U13: Normopeso
A14: 12 | D14: F | E14: 1999
A15: 13 | C15: X | D15: M | E15: 2001 | F15: 58.7 | G15: 172 | H15: 19.84180638 | I15: D | K15: N | N15: 0 | O15: 211 | P15: 450 | Q15: 2291 | R15: + | S15: + | T15: ?? | U15: Sottopeso
A16: 14 | C16: X | D16: M | E16: 2001 | F16: 37.4 | G16: 158 | H16: 14.98157347 | I16: D | K16: S | N16: -7 | O16: 170 | P16: 591 | Q16: 2482 | R16: + | S16: = | T16: ?? | U16: Sottopeso
A17: 15 | C17: X | D17: M | E17: 2001 | F17: 49.4 | G17: 162 | H17: 18.8233501 | I17: S | K17: S | N17: 3 | O17: 206 | P17: 466 | Q17: 2190 | R17: ++ | S17: + | T17: ?? | U17: Sottopeso
A18: 16 | C18: X | D18: M | E18: 2000 | F18: 57.8 | G18: 173 | H18: 19.31237262 | I18: D | K18: N | N18: -8 | O18: 176 | P18: 503 | Q18: 2384 | R18: = | S18: = | T18: ?? | U18: Sottopeso
A19: 17 | C19: X | D19: M | E19: 2001 | F19: 61.2 | G19: 163 | H19: 23.03436336 | I19: S | K19: I | N19: 3 | O19: 175 | P19: 541 | Q19: 2625 | R19: + | S19: = | T19: ?? | U19: Normopeso
A20: 18 | C20: X | D20: M | E20: 2001 | F20: 68.9 | G20: 174 | H20: 22.75729951 | I20: D | K20: N | N20: -17 | O20: 157 | P20: 540 | Q20: 2806 | R20: - | S20: + | T20: ?? | U20: Normopeso
A21: 19 | C21: X | D21: M | E21: 2001 | F21: 43.5 | G21: 158 | H21: 17.42509213 | I21: D | K21: S | N21: 0 | O21: 185 | P21: 550 | Q21: 2316 | R21: + | S21: = | T21: ?? | U21: Sottopeso
A22: 20 | C22: X | D22: M | E22: 2001 | F22: 61.8 | G22: 173 | H22: 20.64886899 | I22: D | K22: S | N22: 8 | O22: 171 | P22: 541 | Q22: 2872 | R22: = | S22: ++ | T22: ?? | U22: Sottopeso
A23: 21 | C23: X | D23: M | E23: 2000 | F23: 77.1 | G23: 164 | H23: 28.66597264 | I23: D | K23: I | N23: 18 | O23: 176 | P23: 534 | Q23: 2512 | R23: = | S23: = | T23: ?? | U23: Sovrappeso
A24: 22 | C24: X | D24: M | E24: 2001 | F24: 62.7 | G24: 176 | H24: 20.24147727 | I24: D | K24: I | N24: -7 | O24: 218 | P24: 457 | Q24: 2263 | R24: + | S24: ++ | T24: ?? | U24: Sottopeso
A25: 23
A26: 24
A27: 25
A28: 26
A29: 27
A30: 28
A31: 29
A32: 30
B35: Alunni : | C35: =COUNTIF(B3:B32,"<>"&"") -> 0 | I35: Dx | J35: Sx | K35: S | L35: NS | M35: I
B36: Media | C36: =COUNTIF(C3:C32,"X")/C35 ->  | D36: =(COUNTIFS(D3:D32,"M",C3:C32,"X")+COUNTIFS(D3:D32,"F",C3:C32,"X"))/C39 -> 1 | E36: =AVERAGE(E3:E32) -> 2000.818182 | F36: =AVERAGEIFS(F3:F32,C3:C32,"X") -> 55.08571429 | G36: =AVERAGEIFS(G3:G32,C3:C32,"X") -> 163.7619048 | H36: =AVERAGEIFS(H3:H32,C3:C32,"X") -> 20.44377105 | I36: =(COUNTIFS(I3:I32,"D",C3:C32,"X")/C39) -> 0.8571428571 | J36: =(COUNTIFS(I3:I32,"S",C3:C32,"X")/C39) -> 0.1428571429 | K36: =(COUNTIFS(K3:K32,"S",C3:C32,"X")/C39) -> 0.380952381 | L36: =(COUNTIFS(K3:K32,"N",C3:C32,"X")/C39) -> 0.1904761905 | M36: =(COUNTIFS(K3:K32,"I",C3:C32,"X")/C39) -> 0.4285714286 | N36: =AVERAGEIFS(N3:N32,C3:C32,"X") -> -0.8571428571 | O36: =AVERAGEIFS(O3:O32,C3:C32,"X") -> 170.5714286 | P36: =AVERAGEIFS(P3:P32,C3:C32,"X") -> 534.8571429 | Q36: =AVERAGEIFS(Q3:Q32,C3:C32,"X") -> 2600.095238 | R36: =COUNTIF(R$3:R$32,"=++")/COUNTIFS(R$3:R$32,"<>X",R$3:R$32,"<>") -> 0.09523809524 | S36: =COUNTIF(S$3:S$32,"=++")/COUNTIFS(S$3:S$32,"<>X",S$3:S$32,"<>") -> 0.1904761905
B37: Media maschi | C37: =COUNTIFS(C3:C32,"X",D3:D32,"M")/C35 ->  | D37: =COUNTIFS(D3:D32,"M",C3:C32,"X")/C39 -> 0.6666666667 | E37: =AVERAGEIFS(E3:E32,C3:C32,"X",D3:D32,"M") -> 2000.857143 | F37: =AVERAGEIFS(F3:F32,C3:C32,"X",D3:D32,"M") -> 57.93571429 | G37: =AVERAGEIFS(G3:G32,C3:C32,"X",D3:D32,"M") -> 167.5 | H37: =AVERAGEIFS(H3:H32,C3:C32,"X",D3:D32,"M") -> 20.58008409 | I37: =(COUNTIFS(I3:I32,"D",C3:C32,"X",D3:D32,"M")/COUNTIFS(D3:D32,"M",C3:C32,"X")) -> 0.7857142857 | J37: =(COUNTIFS(I3:I32,"S",C3:C32,"X",D3:D32,"M")/COUNTIFS(D3:D32,"M",C3:C32,"X")) -> 0.2142857143 | K37: =(COUNTIFS(K3:K32,"S",C3:C32,"X",D3:D32,"M")/COUNTIFS(D3:D32,"M",C3:C32,"X")) -> 0.5714285714 | L37: =(COUNTIFS(K3:K32,"N",C3:C32,"X",D3:D32,"M")/COUNTIFS(D3:D32,"M",C3:C32,"X")) -> 0.2142857143 | M37: =(COUNTIFS(K3:K32,"I",C3:C32,"X",D3:D32,"M")/COUNTIFS(D3:D32,"M",C3:C32,"X")) -> 0.2142857143 | N37: =AVERAGEIFS(N3:N32,C3:C32,"X",D3:D32,"M") -> -1.857142857 | O37: =AVERAGEIFS(O3:O32,C3:C32,"X",D3:D32,"M") -> 187.8571429 | P37: =AVERAGEIFS(P3:P32,C3:C32,"X",D3:D32,"M") -> 509.2857143 | Q37: =AVERAGEIFS(Q3:Q32,C3:C32,"X",D3:D32,"M") -> 2415.428571 | R37: =COUNTIF(R$3:R$32,"=+")/COUNTIFS(R$3:R$32,"<>X",R$3:R$32,"<>") -> 0.4285714286 | S37: =COUNTIF(S$3:S$32,"=+")/COUNTIFS(S$3:S$32,"<>X",S$3:S$32,"<>") -> 0.1904761905
B38: Media femmine | C38: =COUNTIFS(C4:C32,"X",D4:D32,"F")/C35 ->  | D38: =COUNTIFS(D3:D32,"F",C3:C32,"X")/C39 -> 0.3333333333 | E38: =AVERAGEIFS(E3:E32,C3:C32,"X",D3:D32,"F") -> 2001 | F38: =AVERAGEIFS(F3:F32,C3:C32,"X",D3:D32,"F") -> 49.38571429 | G38: =AVERAGEIFS(G3:G32,C3:C32,"X",D3:D32,"F") -> 156.2857143 | H38: =AVERAGEIFS(H3:H32,C3:C32,"X",D3:D32,"F") -> 20.17114497 | I38: =(COUNTIFS(I3:I32,"D",C3:C32,"X",D3:D32,"F")/COUNTIFS(D3:D32,"F",C3:C32,"X")) -> 1 | J38: =(COUNTIFS(I3:I32,"S",C3:C32,"X",D3:D32,"F")/COUNTIFS(D3:D32,"F",C3:C32,"X")) -> 0 | K38: =(COUNTIFS(K3:K32,"S",C3:C32,"X",D3:D32,"F")/COUNTIFS(D3:D32,"F",C3:C32,"X")) -> 0 | L38: =(COUNTIFS(K3:K32,"N",C3:C32,"X",D3:D32,"F")/COUNTIFS(D3:D32,"F",C3:C32,"X")) -> 0.1428571429 | M38: =(COUNTIFS(K3:K32,"N",C3:C32,"X",D3:D32,"F")/COUNTIFS(D3:D32,"F",C3:C32,"X")) -> 0.1428571429 | N38: =AVERAGEIFS(N3:N32,C3:C32,"X",D3:D32,"F") -> 1.142857143 | O38: =AVERAGEIFS(O3:O32,C3:C32,"X",D3:D32,"F") -> 136 | P38: =AVERAGEIFS(P3:P32,C3:C32,"X",D3:D32,"F") -> 586 | Q38: =AVERAGEIFS(Q3:Q32,C3:C32,"X",D3:D32,"F") -> 2969.428571 | R38: =COUNTIF(R$3:R$32,"==")/COUNTIFS(R$3:R$32,"<>X",R$3:R$32,"<>") -> 0.3333333333 | S38: =COUNTIF(S$3:S$32,"==")/COUNTIFS(S$3:S$32,"<>X",S$3:S$32,"<>") -> 0.5714285714
B39: Presenti | C39: =COUNTIF(C3:C32,"X") -> 21 | N39: Record | R39: =COUNTIF(R$3:R$32,"-")/COUNTIFS(R$3:R$32,"<>X",R$3:R$32,"<>") -> 0.1428571429 | S39: =COUNTIF(S$3:S$32,"-")/COUNTIFS(S$3:S$32,"<>X",S$3:S$32,"<>") -> 0.04761904762
N40: =MAX(N3:N32) -> 18 | O40: =MAX(O3:O32) -> 223 | P40: =MIN(P3:P32) -> 450 | Q40: =MIN(Q3:Q32) -> 2097 | R40: =COUNTIF(R$3:R$32,"--")/COUNTIFS(R$3:R$32,"<>X",R$3:R$32,"<>") -> 0 | S40: =COUNTIF(S$3:S$32,"--")/COUNTIFS(S$3:S$32,"<>X",S$3:S$32,"<>") -> 0
N41: =INDEX(B3:B32,MATCH(N40,N3:N32,0),1) -> 0 | O41: =INDEX(B3:B32,MATCH(O40,O3:O32,0),1) -> 0 | P41: =INDEX(B3:B32,MATCH(P40,P3:P32,0),1) -> 0 | Q41: =INDEX(B3:B32,MATCH(Q40,Q3:Q32,0),1) -> 0

Sheet 1TB
A1: 1TB
A2: N° | B2: Alunno | C2: Presente | D2: Sex | E2: Anno | F2: Peso | G2: Statura | H2: BMI | I2: S/D | K2: Sportivo-Nsportivo-Intermedio | N2: Flessibilità | O2: Ldf | P2: Velocità | Q2: Destrezza | R2: Volley | S2: Basket | T2: Note
A3: 1 | B3: Aly Zynan El Sayed Moham | C3: X | D3: F | E3: 2001 | F3: 53.2 | G3: 169 | H3: =IF(C3 = "X",F3/(G3/100)^2,"") -> 18.62679878 | I3: D | K3: N | N3: -30 | T3: =IF(AND(C3<>"X",B3<>""),"Assente",IF(AND(B3="",C3="X"),"??","")) ->  | U3: =IF(AND(C3="X",D3="M"),IF(H3<>"",IF(H3<20.7,"Sottopeso",IF(H3>27.8,"Sovrappeso","Normopeso")),""),IF(AND(C3="X",D3="F"),IF(H3<>"",IF(H3<19.1,"Sottopeso",IF(H3>27.3,"Sovrappeso","Normopeso")),""),"")) -> Sottopeso
A4: 2 | B4: Bantugan John Andrei | C4: X | D4: M | E4: 1999 | F4: 75.3 | G4: 172 | H4: =IF(C4 = "X",F4/(G4/100)^2,"") -> 25.45294754 | I4: D | K4: I | N4: 0 | T4: =IF(AND(C4<>"X",B4<>""),"Assente",IF(AND(B4="",C4="X"),"??","")) ->  | U4: =IF(AND(C4="X",D4="M"),IF(H4<>"",IF(H4<20.7,"Sottopeso",IF(H4>27.8,"Sovrappeso","Normopeso")),""),IF(AND(C4="X",D4="F"),IF(H4<>"",IF(H4<19.1,"Sottopeso",IF(H4>27.3,"Sovrappeso","Normopeso")),""),"")) -> Normopeso
A5: 3 | B5: Cardoso Valdes | C5: X | D5: M | E5: 2001 | F5: 48.7 | G5: 161 | H5: 18.78785541 | I5: D | K5: S | N5: -27 | U5: Sottopeso
A6: 4 | B6: Camerani Alessandro | C6: X | D6: M | E6: 1999 | F6: 59.4 | G6: 164 | H6: 22.08506841 | I6: D | K6: I | N6: -2 | U6: Normopeso
A7: 5 | B7: Coppi Mirko | C7: X | D7: M | E7: 2001 | F7: 65.2 | G7: 171 | H7: 22.29745905 | I7: D | K7: I | N7: -5 | U7: Normopeso
A8: 6 | B8: Crescenzi Simone | D8: M | E8: 2001 | T8: Assente
A9: 7 | B9: De leon John Marlon Dela Cru | C9: X | D9: M | E9: 2001 | F9: 90.7 | G9: 175 | H9: 29.61632653 | I9: S | K9: I | N9: -14 | U9: Sovrappeso
A10: 8 | B10: Dentale Alessio | C10: X | D10: M | E10: 2001 | F10: 69.7 | G10: 163 | H10: 26.23358049 | I10: D | K10: I | N10: -15 | U10: Normopeso
A11: 9 | B11: Di domenico Alessio | C11: X | D11: M | E11: 2001 | F11: 57.8 | G11: 174 | H11: 19.0910292 | I11: D | K11: I | N11: -7 | U11: Sottopeso
A12: 10 | B12: Elyas Abramo | C12: X | D12: M | E12: 2001 | F12: 66.7 | G12: 176 | H12: 21.53279959 | I12: D | K12: S | N12: 3 | U12: Normopeso
A13: 11 | B13: Felicioni Dario | C13: X | D13: M | E13: 2001 | F13: 57.3 | G13: 152 | H13: 24.80090028 | I13: D | K13: I | N13: 4 | U13: Normopeso
A14: 12 | B14: Ferru Alessio | C14: X | D14: M | E14: 2001 | F14: 44.3 | G14: 161 | H14: 17.09039003 | I14: D | K14: I | N14: -2 | U14: Sottopeso
A15: 13 | B15: Giuseppetti Jacopo | C15: X | D15: M | E15: 2002 | F15: 63.2 | G15: 168 | H15: 22.39229025 | I15: D | K15: S | N15: 5 | U15: Normopeso
A16: 14 | B16: Meloni Mirko | C16: X | D16: M | E16: 2000 | F16: 68.1 | G16: 172 | H16: 23.01919957 | I16: D | K16: S | N16: 20 | U16: Normopeso
A17: 15 | B17: Hernandez Ralph | C17: X | D17: M | E17: 1999 | F17: 59 | G17: 166 | H17: 21.41094498 | I17: D | K17: S | N17: -14 | U17: Normopeso
A18: 16 | B18: Pagnotta Lorenzo | C18: X | D18: M | E18: 2001 | F18: 63.4 | G18: 175 | H18: 20.70204082 | I18: D | K18: P | N18: 2 | U18: Normopeso
A19: 17 | B19: Pischedda Massimo | C19: X | D19: M | E19: 2001 | F19: 68.8 | G19: 162 | H19: 26.21551593 | I19: D | K19: S | N19: -5 | U19: Normopeso
A20: 18 | B20: Zampieri Matteo | C20: X | D20: M | E20: 2001 | F20: 47.2 | G20: 154 | H20: =IF(C20 = "X",F20/(G20/100)^2,"") -> 19.90217575 | I20: D | K20: S | N20: -14 | T20: =IF(AND(C20<>"X",B20<>""),"Assente",IF(AND(B20="",C20="X"),"??","")) ->  | U20: =IF(AND(C20="X",D20="M"),IF(H20<>"",IF(H20<20.7,"Sottopeso",IF(H20>27.8,"Sovrappeso","Normopeso")),""),IF(AND(C20="X",D20="F"),IF(H20<>"",IF(H20<19.1,"Sottopeso",IF(H20>27.3,"Sovrappeso","Normopeso")),""),"")) -> Sottopeso
A21: 19 | B21: Mele Riccardo | C21: X | D21: M | E21: 2000 | F21: 59.1 | G21: 166 | H21: =IF(C21 = "X",F21/(G21/100)^2,"") -> 21.44723472 | I21: D | K21: I | N21: 10 | T21: =IF(AND(C21<>"X",B21<>""),"Assente",IF(AND(B21="",C21="X"),"??","")) ->  | U21: =IF(AND(C21="X",D21="M"),IF(H21<>"",IF(H21<20.7,"Sottopeso",IF(H21>27.8,"Sovrappeso","Normopeso")),""),IF(AND(C21="X",D21="F"),IF(H21<>"",IF(H21<19.1,"Sottopeso",IF(H21>27.3,"Sovrappeso","Normopeso")),""),"")) -> Normopeso
A22: 20 | B22: Hernandez Ralph | C22: X | D22: M | E22: 1999 | F22: 53.5 | G22: 164 | H22: =IF(C22 = "X",F22/(G22/100)^2,"") -> 19.89143367 | I22: D | K22: I | T22: =IF(AND(C22<>"X",B22<>""),"Assente",IF(AND(B22="",C22="X"),"??","")) ->  | U22: =IF(AND(C22="X",D22="M"),IF(H22<>"",IF(H22<20.7,"Sottopeso",IF(H22>27.8,"Sovrappeso","Normopeso")),""),IF(AND(C22="X",D22="F"),IF(H22<>"",IF(H22<19.1,"Sottopeso",IF(H22>27.3,"Sovrappeso","Normopeso")),""),"")) -> Sottopeso
A23: 21 | B23: Zanitti | C23: X | D23: M | E23: 1997 | F23: 100 | G23: 170 | H23: =IF(C23 = "X",F23/(G23/100)^2,"") -> 34.60207612 | I23: D | K23: I | N23: 3 | T23: =IF(AND(C23<>"X",B23<>""),"Assente",IF(AND(B23="",C23="X"),"??","")) ->  | U23: =IF(AND(C23="X",D23="M"),IF(H23<>"",IF(H23<20.7,"Sottopeso",IF(H23>27.8,"Sovrappeso","Normopeso")),""),IF(AND(C23="X",D23="F"),IF(H23<>"",IF(H23<19.1,"Sottopeso",IF(H23>27.3,"Sovrappeso","Normopeso")),""),"")) -> Sovrappeso
A24: 22 | H24: =IF(C24 = "X",F24/(G24/100)^2,"") ->  | T24: =IF(AND(C24<>"X",B24<>""),"Assente",IF(AND(B24="",C24="X"),"??","")) ->  | U24: =IF(AND(C24="X",D24="M"),IF(H24<>"",IF(H24<20.7,"Sottopeso",IF(H24>27.8,"Sovrappeso","Normopeso")),""),IF(AND(C24="X",D24="F"),IF(H24<>"",IF(H24<19.1,"Sottopeso",IF(H24>27.3,"Sovrappeso","Normopeso")),""),"")) -> 
A25: 23
A26: 24
A27: 25
A28: 26
A29: 27
A30: 28
A31: 29
A32: 30
B35: Alunni : | C35: =COUNTIF(B3:B32,"<>"&"") -> 21 | I35: Dx | J35: Sx | K35: S | L35: NS | M35: I
B36: Media | C36: =COUNTIF(C3:C32,"X")/C35 -> 0.9523809524 | D36: =(COUNTIFS(D3:D32,"M",C3:C32,"X")+COUNTIFS(D3:D32,"F",C3:C32,"X"))/C39 -> 1 | E36: =AVERAGE(E3:E32) -> 2000.380952 | F36: =AVERAGEIFS(F3:F32,C3:C32,"X") -> 63.53 | G36: =AVERAGEIFS(G3:G32,C3:C32,"X") -> 166.75 | H36: =AVERAGEIFS(H3:H32,C3:C32,"X") -> 22.75990336 | I36: =(COUNTIFS(I3:I32,"D",C3:C32,"X")/C39) -> 0.95 | J36: =(COUNTIFS(I3:I32,"S",C3:C32,"X")/C39) -> 0.05 | K36: =(COUNTIFS(K3:K32,"S",C3:C32,"X")/C39) -> 0.35 | L36: =(COUNTIFS(K3:K32,"N",C3:C32,"X")/C39) -> 0.05 | M36: =(COUNTIFS(K3:K32,"I",C3:C32,"X")/C39) -> 0.55 | N36: =AVERAGEIFS(N3:N32,C3:C32,"X") -> -4.631578947 | O36: =AVERAGEIFS(O3:O32,C3:C32,"X") ->  | P36: =AVERAGEIFS(P3:P32,C3:C32,"X") ->  | Q36: =AVERAGEIFS(Q3:Q32,C3:C32,"X") ->  | R36: =COUNTIF(R$3:R$32,"=++")/COUNTIFS(R$3:R$32,"<>X",R$3:R$32,"<>") ->  | S36: =COUNTIF(S$3:S$32,"=++")/COUNTIFS(S$3:S$32,"<>X",S$3:S$32,"<>") -> 
B37: Media maschi | C37: =COUNTIFS(C3:C32,"X",D3:D32,"M")/C35 -> 0.9047619048 | D37: =COUNTIFS(D3:D32,"M",C3:C32,"X")/C39 -> 0.95 | E37: =AVERAGEIFS(E3:E32,C3:C32,"X",D3:D32,"M") -> 2000.315789 | F37: =AVERAGEIFS(F3:F32,C3:C32,"X",D3:D32,"M") -> 64.07368421 | G37: =AVERAGEIFS(G3:G32,C3:C32,"X",D3:D32,"M") -> 166.6315789 | H37: =AVERAGEIFS(H3:H32,C3:C32,"X",D3:D32,"M") -> 22.97743518 | I37: =(COUNTIFS(I3:I32,"D",C3:C32,"X",D3:D32,"M")/COUNTIFS(D3:D32,"M",C3:C32,"X")) -> 0.9473684211 | J37: =(COUNTIFS(I3:I32,"S",C3:C32,"X",D3:D32,"M")/COUNTIFS(D3:D32,"M",C3:C32,"X")) -> 0.05263157895 | K37: =(COUNTIFS(K3:K32,"S",C3:C32,"X",D3:D32,"M")/COUNTIFS(D3:D32,"M",C3:C32,"X")) -> 0.3684210526 | L37: =(COUNTIFS(K3:K32,"N",C3:C32,"X",D3:D32,"M")/COUNTIFS(D3:D32,"M",C3:C32,"X")) -> 0 | M37: =(COUNTIFS(K3:K32,"I",C3:C32,"X",D3:D32,"M")/COUNTIFS(D3:D32,"M",C3:C32,"X")) -> 0.5789473684 | N37: =AVERAGEIFS(N3:N32,C3:C32,"X",D3:D32,"M") -> -3.222222222 | O37: =AVERAGEIFS(O3:O32,C3:C32,"X",D3:D32,"M") ->  | P37: =AVERAGEIFS(P3:P32,C3:C32,"X",D3:D32,"M") ->  | Q37: =AVERAGEIFS(Q3:Q32,C3:C32,"X",D3:D32,"M") ->  | R37: =COUNTIF(R$3:R$32,"=+")/COUNTIFS(R$3:R$32,"<>X",R$3:R$32,"<>") ->  | S37: =COUNTIF(S$3:S$32,"=+")/COUNTIFS(S$3:S$32,"<>X",S$3:S$32,"<>") -> 
B38: Media femmine | C38: =COUNTIFS(C4:C32,"X",D4:D32,"F")/C35 -> 0 | D38: =COUNTIFS(D3:D32,"F",C3:C32,"X")/C39 -> 0.05 | E38: =AVERAGEIFS(E3:E32,C3:C32,"X",D3:D32,"F") -> 2001 | F38: =AVERAGEIFS(F3:F32,C3:C32,"X",D3:D32,"F") -> 53.2 | G38: =AVERAGEIFS(G3:G32,C3:C32,"X",D3:D32,"F") -> 169 | H38: =AVERAGEIFS(H3:H32,C3:C32,"X",D3:D32,"F") -> 18.62679878 | I38: =(COUNTIFS(I3:I32,"D",C3:C32,"X",D3:D32,"F")/COUNTIFS(D3:D32,"F",C3:C32,"X")) -> 1 | J38: =(COUNTIFS(I3:I32,"S",C3:C32,"X",D3:D32,"F")/COUNTIFS(D3:D32,"F",C3:C32,"X")) -> 0 | K38: =(COUNTIFS(K3:K32,"S",C3:C32,"X",D3:D32,"F")/COUNTIFS(D3:D32,"F",C3:C32,"X")) -> 0 | L38: =(COUNTIFS(K3:K32,"N",C3:C32,"X",D3:D32,"F")/COUNTIFS(D3:D32,"F",C3:C32,"X")) -> 1 | M38: =(COUNTIFS(K3:K32,"N",C3:C32,"X",D3:D32,"F")/COUNTIFS(D3:D32,"F",C3:C32,"X")) -> 1 | N38: =AVERAGEIFS(N3:N32,C3:C32,"X",D3:D32,"F") -> -30 | O38: =AVERAGEIFS(O3:O32,C3:C32,"X",D3:D32,"F") ->  | P38: =AVERAGEIFS(P3:P32,C3:C32,"X",D3:D32,"F") ->  | Q38: =AVERAGEIFS(Q3:Q32,C3:C32,"X",D3:D32,"F") ->  | R38: =COUNTIF(R$3:R$32,"==")/COUNTIFS(R$3:R$32,"<>X",R$3:R$32,"<>") ->  | S38: =COUNTIF(S$3:S$32,"==")/COUNTIFS(S$3:S$32,"<>X",S$3:S$32,"<>") -> 
B39: Presenti | C39: =COUNTIF(C3:C32,"X") -> 20 | N39: Record | R39: =COUNTIF(R$3:R$32,"-")/COUNTIFS(R$3:R$32,"<>X",R$3:R$32,"<>") ->  | S39: =COUNTIF(S$3:S$32,"-")/COUNTIFS(S$3:S$32,"<>X",S$3:S$32,"<>") -> 
N40: =MAX(N3:N32) -> 20 | O40: =MAX(O3:O32) -> 0 | P40: =MIN(P3:P32) -> 0 | Q40: =MIN(Q3:Q32) -> 0 | R40: =COUNTIF(R$3:R$32,"--")/COUNTIFS(R$3:R$32,"<>X",R$3:R$32,"<>") ->  | S40: =COUNTIF(S$3:S$32,"--")/COUNTIFS(S$3:S$32,"<>X",S$3:S$32,"<>") -> 
N41: =INDEX(B3:B32,MATCH(N40,N3:N32,0),1) -> Meloni Mirko | O41: =INDEX(B3:B32,MATCH(O40,O3:O32,0),1) ->  | P41: =INDEX(B3:B32,MATCH(P40,P3:P32,0),1) ->  | Q41: =INDEX(B3:B32,MATCH(Q40,Q3:Q32,0),1) -> 

Sheet 1LB
A1: 1LB
A2: N° | B2: Alunno | C2: Presente | D2: Sex | E2: Anno | F2: Peso | G2: Statura | H2: BMI | I2: S/D | K2: Sportivo-Nsportivo-Intermedio | N2: Flessibilità | O2: Ldf | P2: Velocità | Q2: Destrezza | R2: Volley | S2: Basket | T2: Note
A3: 1 | C3: X | D3: M | E3: 2001 | F3: 63.7 | G3: 177 | H3: =IF(C3 = "X",F3/(G3/100)^2,"") -> 20.33259919 | I3: D | K3: S | N3: 6 | O3: 240 | P3: 462 | Q3: 2222 | R3: + | S3: ++ | T3: =IF(AND(C3<>"X",B3<>""),"Assente",IF(AND(B3="",C3="X"),"??","")) -> ?? | U3: =IF(AND(C3="X",D3="M"),IF(H3<>"",IF(H3<20.7,"Sottopeso",IF(H3>27.8,"Sovrappeso","Normopeso")),""),IF(AND(C3="X",D3="F"),IF(H3<>"",IF(H3<19.1,"Sottopeso",IF(H3>27.3,"Sovrappeso","Normopeso")),""),"")) -> Sottopeso
A4: 2 | C4: X | D4: M | E4: 2001 | F4: 46.8 | G4: 158 | H4: =IF(C4 = "X",F4/(G4/100)^2,"") -> 18.74699567 | I4: D | K4: S | N4: -9 | O4: 193 | P4: 519 | Q4: 2423 | R4: + | S4: ++ | T4: =IF(AND(C4<>"X",B4<>""),"Assente",IF(AND(B4="",C4="X"),"??","")) -> ?? | U4: =IF(AND(C4="X",D4="M"),IF(H4<>"",IF(H4<20.7,"Sottopeso",IF(H4>27.8,"Sovrappeso","Normopeso")),""),IF(AND(C4="X",D4="F"),IF(H4<>"",IF(H4<19.1,"Sottopeso",IF(H4>27.3,"Sovrappeso","Normopeso")),""),"")) -> Sottopeso
A5: 3 | C5: X | D5: M | E5: 2001 | F5: 112.8 | G5: 175 | H5: 36.83265306 | I5: S | K5: N | N5: -8 | O5: 137 | P5: 678 | R5: = | S5: = | T5: ?? | U5: Sovrappeso
A6: 4 | C6: X | D6: F | E6: 2001 | F6: 59.3 | G6: 170 | H6: 20.51903114 | I6: D | K6: N | N6: 21 | O6: 186 | P6: 535 | Q6: 2744 | R6: ++ | S6: ++ | T6: ?? | U6: Normopeso
A7: 5 | C7: X | D7: M | E7: 2002 | F7: 44.8 | G7: 159 | H7: 17.72081801 | I7: D | K7: S | N7: -4 | O7: 182 | P7: 556 | Q7: 2447 | R7: + | S7: + | T7: ?? | U7: Sottopeso
A8: 6 | C8: X | D8: M | E8: 2001 | F8: 62.4 | G8: 163 | H8: 23.48601754 | I8: D | K8: S | N8: -13 | O8: 177 | P8: 515 | Q8: 2518 | R8: + | S8: = | T8: ?? | U8: Normopeso
A9: 7 | D9: M
A10: 8 | C10: X | D10: M | E10: 2001 | F10: 61.6 | G10: 177 | H10: 19.66229372 | I10: D | K10: S | N10: 11 | O10: 205 | P10: 498 | Q10: 2304 | R10: = | S10: = | T10: ?? | U10: Sottopeso
A11: 9 | C11: X | D11: M | E11: 2001 | F11: 58 | G11: 166 | H11: 21.04804761 | I11: D | K11: S | N11: 0 | O11: 180 | P11: 466 | Q11: 2160 | R11: = | S11: + | T11: ?? | U11: Normopeso
A12: 10 | C12: X | D12: M | E12: 2001 | F12: 55.2 | G12: 163 | H12: 20.77609244 | I12: D | K12: I | N12: -19 | O12: 201 | P12: 509 | Q12: 2538 | R12: - | S12: = | T12: ?? | U12: Normopeso
A13: 11 | C13: X | D13: M | E13: 2001 | F13: 43.8 | G13: 161 | H13: 16.89749624 | I13: D | K13: I | N13: -10 | O13: 166 | P13: 581 | Q13: 2978 | R13: - | S13: = | T13: ?? | U13: Sottopeso
A14: 12 | C14: X | D14: M | E14: 2001 | F14: 71.4 | G14: 174 | H14: 23.58303607 | I14: D | K14: S | N14: -14 | O14: 191 | P14: 497 | Q14: 2354 | R14: = | S14: + | T14: ?? | U14: Normopeso
A15: 13 | C15: X | D15: F | E15: 1998 | F15: 50.9 | G15: 146 | H15: 23.87877651 | I15: D | K15: I | N15: -5 | O15: 130 | P15: 694 | Q15: 3338 | R15: = | S15: = | T15: ?? | U15: Normopeso
A16: 14 | C16: X | D16: M | E16: 2001 | F16: 54.6 | G16: 161 | H16: 21.06400216 | I16: D | K16: N | N16: 12 | O16: 241 | P16: 447 | Q16: 2130 | R16: + | S16: ++ | T16: ?? | U16: Normopeso
A17: 15 | C17: X | D17: M | E17: 2001 | F17: 62.9 | G17: 173 | H17: 21.01640549 | I17: D | K17: N | N17: 14 | O17: 201 | P17: 487 | Q17: 2306 | R17: + | S17: = | T17: ?? | U17: Normopeso
A18: 16 | C18: X | D18: M | E18: 2001 | F18: 86.3 | G18: 174 | H18: 28.50442595 | I18: D | K18: I | N18: 0 | O18: 150 | P18: 604 | Q18: 2957 | R18: = | S18: + | T18: ?? | U18: Sovrappeso
A19: 17 | C19: X | D19: F | E19: 2001 | F19: 39.2 | G19: 156 | H19: 16.1078238 | I19: D | K19: I | O19: 150 | R19: + | S19: + | T19: ?? | U19: Sottopeso
A20: 18 | C20: X | D20: M | E20: 2001 | F20: 41.6 | G20: 160 | H20: 16.25 | I20: D | K20: I | N20: -17 | O20: 174 | P20: 590 | Q20: 2650 | R20: = | S20: = | T20: ?? | U20: Sottopeso
A21: 19 | D21: F
A22: 20 | C22: X | D22: M | E22: 2002 | F22: 52.2 | G22: 164 | H22: 19.40809042 | I22: D | K22: S | N22: 0 | O22: 184 | P22: 512 | Q22: 2257 | R22: = | S22: = | T22: ?? | U22: Sottopeso
A23: 21 | C23: X | D23: M | E23: 2001 | F23: 41.7 | G23: 163 | H23: 15.69498287 | I23: D | K23: I | N23: -5 | O23: 200 | P23: 516 | Q23: 2325 | R23: + | S23: + | T23: ?? | U23: Sottopeso
A24: 22
A25: 23
A26: 24
A27: 25
A28: 26
A29: 27
A30: 28
A31: 29
A32: 30
B35: Alunni : | C35: =COUNTIF(B3:B32,"<>"&"") -> 0 | I35: Dx | J35: Sx | K35: S | L35: NS | M35: I
B36: Media | C36: =COUNTIF(C3:C32,"X")/C35 ->  | D36: =(COUNTIFS(D3:D32,"M",C3:C32,"X")+COUNTIFS(D3:D32,"F",C3:C32,"X"))/C39 -> 1 | E36: =AVERAGE(E3:E32) -> 2000.947368 | F36: =AVERAGEIFS(F3:F32,C3:C32,"X") -> 58.37894737 | G36: =AVERAGEIFS(G3:G32,C3:C32,"X") -> 165.2631579 | H36: =AVERAGEIFS(H3:H32,C3:C32,"X") -> 21.1331362 | I36: =(COUNTIFS(I3:I32,"D",C3:C32,"X")/C39) -> 0.9473684211 | J36: =(COUNTIFS(I3:I32,"S",C3:C32,"X")/C39) -> 0.05263157895 | K36: =(COUNTIFS(K3:K32,"S",C3:C32,"X")/C39) -> 0.4210526316 | L36: =(COUNTIFS(K3:K32,"N",C3:C32,"X")/C39) -> 0.2105263158 | M36: =(COUNTIFS(K3:K32,"I",C3:C32,"X")/C39) -> 0.3684210526 | N36: =AVERAGEIFS(N3:N32,C3:C32,"X") -> -2.222222222 | O36: =AVERAGEIFS(O3:O32,C3:C32,"X") -> 183.5789474 | P36: =AVERAGEIFS(P3:P32,C3:C32,"X") -> 537 | Q36: =AVERAGEIFS(Q3:Q32,C3:C32,"X") -> 2508.882353 | R36: =COUNTIF(R$3:R$32,"=++")/COUNTIFS(R$3:R$32,"<>X",R$3:R$32,"<>") -> 0.05263157895 | S36: =COUNTIF(S$3:S$32,"=++")/COUNTIFS(S$3:S$32,"<>X",S$3:S$32,"<>") -> 0.2105263158
B37: Media maschi | C37: =COUNTIFS(C3:C32,"X",D3:D32,"M")/C35 ->  | D37: =COUNTIFS(D3:D32,"M",C3:C32,"X")/C39 -> 0.8421052632 | E37: =AVERAGEIFS(E3:E32,C3:C32,"X",D3:D32,"M") -> 2001.125 | F37: =AVERAGEIFS(F3:F32,C3:C32,"X",D3:D32,"M") -> 59.9875 | G37: =AVERAGEIFS(G3:G32,C3:C32,"X",D3:D32,"M") -> 166.75 | H37: =AVERAGEIFS(H3:H32,C3:C32,"X",D3:D32,"M") -> 21.31399728 | I37: =(COUNTIFS(I3:I32,"D",C3:C32,"X",D3:D32,"M")/COUNTIFS(D3:D32,"M",C3:C32,"X")) -> 0.9375 | J37: =(COUNTIFS(I3:I32,"S",C3:C32,"X",D3:D32,"M")/COUNTIFS(D3:D32,"M",C3:C32,"X")) -> 0.0625 | K37: =(COUNTIFS(K3:K32,"S",C3:C32,"X",D3:D32,"M")/COUNTIFS(D3:D32,"M",C3:C32,"X")) -> 0.5 | L37: =(COUNTIFS(K3:K32,"N",C3:C32,"X",D3:D32,"M")/COUNTIFS(D3:D32,"M",C3:C32,"X")) -> 0.1875 | M37: =(COUNTIFS(K3:K32,"I",C3:C32,"X",D3:D32,"M")/COUNTIFS(D3:D32,"M",C3:C32,"X")) -> 0.3125 | N37: =AVERAGEIFS(N3:N32,C3:C32,"X",D3:D32,"M") -> -3.5 | O37: =AVERAGEIFS(O3:O32,C3:C32,"X",D3:D32,"M") -> 188.875 | P37: =AVERAGEIFS(P3:P32,C3:C32,"X",D3:D32,"M") -> 527.3125 | Q37: =AVERAGEIFS(Q3:Q32,C3:C32,"X",D3:D32,"M") -> 2437.933333 | R37: =COUNTIF(R$3:R$32,"=+")/COUNTIFS(R$3:R$32,"<>X",R$3:R$32,"<>") -> 0.4210526316 | S37: =COUNTIF(S$3:S$32,"=+")/COUNTIFS(S$3:S$32,"<>X",S$3:S$32,"<>") -> 0.3157894737
B38: Media femmine | C38: =COUNTIFS(C4:C32,"X",D4:D32,"F")/C35 ->  | D38: =COUNTIFS(D3:D32,"F",C3:C32,"X")/C39 -> 0.1578947368 | E38: =AVERAGEIFS(E3:E32,C3:C32,"X",D3:D32,"F") -> 2000 | F38: =AVERAGEIFS(F3:F32,C3:C32,"X",D3:D32,"F") -> 49.8 | G38: =AVERAGEIFS(G3:G32,C3:C32,"X",D3:D32,"F") -> 157.3333333 | H38: =AVERAGEIFS(H3:H32,C3:C32,"X",D3:D32,"F") -> 20.16854382 | I38: =(COUNTIFS(I3:I32,"D",C3:C32,"X",D3:D32,"F")/COUNTIFS(D3:D32,"F",C3:C32,"X")) -> 1 | J38: =(COUNTIFS(I3:I32,"S",C3:C32,"X",D3:D32,"F")/COUNTIFS(D3:D32,"F",C3:C32,"X")) -> 0 | K38: =(COUNTIFS(K3:K32,"S",C3:C32,"X",D3:D32,"F")/COUNTIFS(D3:D32,"F",C3:C32,"X")) -> 0 | L38: =(COUNTIFS(K3:K32,"N",C3:C32,"X",D3:D32,"F")/COUNTIFS(D3:D32,"F",C3:C32,"X")) -> 0.3333333333 | M38: =(COUNTIFS(K3:K32,"N",C3:C32,"X",D3:D32,"F")/COUNTIFS(D3:D32,"F",C3:C32,"X")) -> 0.3333333333 | N38: =AVERAGEIFS(N3:N32,C3:C32,"X",D3:D32,"F") -> 8 | O38: =AVERAGEIFS(O3:O32,C3:C32,"X",D3:D32,"F") -> 155.3333333 | P38: =AVERAGEIFS(P3:P32,C3:C32,"X",D3:D32,"F") -> 614.5 | Q38: =AVERAGEIFS(Q3:Q32,C3:C32,"X",D3:D32,"F") -> 3041 | R38: =COUNTIF(R$3:R$32,"==")/COUNTIFS(R$3:R$32,"<>X",R$3:R$32,"<>") -> 0.4210526316 | S38: =COUNTIF(S$3:S$32,"==")/COUNTIFS(S$3:S$32,"<>X",S$3:S$32,"<>") -> 0.4736842105
B39: Presenti | C39: =COUNTIF(C3:C32,"X") -> 19 | N39: Record | R39: =COUNTIF(R$3:R$32,"-")/COUNTIFS(R$3:R$32,"<>X",R$3:R$32,"<>") -> 0.1052631579 | S39: =COUNTIF(S$3:S$32,"-")/COUNTIFS(S$3:S$32,"<>X",S$3:S$32,"<>") -> 0
N40: =MAX(N3:N32) -> 21 | O40: =MAX(O3:O32) -> 241 | P40: =MIN(P3:P32) -> 447 | Q40: =MIN(Q3:Q32) -> 2130 | R40: =COUNTIF(R$3:R$32,"--")/COUNTIFS(R$3:R$32,"<>X",R$3:R$32,"<>") -> 0 | S40: =COUNTIF(S$3:S$32,"--")/COUNTIFS(S$3:S$32,"<>X",S$3:S$32,"<>") -> 0
N41: =INDEX(B3:B32,MATCH(N40,N3:N32,0),1) -> 0 | O41: =INDEX(B3:B32,MATCH(O40,O3:O32,0),1) -> 0 | P41: =INDEX(B3:B32,MATCH(P40,P3:P32,0),1) -> 0 | Q41: =INDEX(B3:B32,MATCH(Q40,Q3:Q32,0),1) -> 0

Sheet 1HA
A2: N° | B2: Alunno | C2: Presente | D2: Sex | E2: Anno | F2: Peso | G2: Statura | H2: BMI | I2: S/D | K2: Sportivo-Nsportivo-Intermedio | N2: Flessibilità | O2: Ldf | P2: Velocità | Q2: Destrezza | R2: Volley | S2: Basket | T2: Note
A3: 1 | C3: X | D3: F | E3: 2001 | F3: 54.1 | G3: 156 | H3: =IF(C3 = "X",F3/(G3/100)^2,"") -> 22.2304405 | I3: D | K3: N | N3: 4 | O3: 97 | P3: 682 | Q3: 3755 | R3: = | S3: = | T3: =IF(AND(C3<>"X",B3<>""),"Assente",IF(AND(B3="",C3="X"),"??","")) -> ?? | U3: =IF(AND(C3="X",D3="M"),IF(H3<>"",IF(H3<20.7,"Sottopeso",IF(H3>27.8,"Sovrappeso","Normopeso")),""),IF(AND(C3="X",D3="F"),IF(H3<>"",IF(H3<19.1,"Sottopeso",IF(H3>27.3,"Sovrappeso","Normopeso")),""),"")) -> Normopeso
A4: 2 | C4: X | D4: F | E4: 2001 | F4: 42.3 | G4: 151 | H4: =IF(C4 = "X",F4/(G4/100)^2,"") -> 18.5518179 | I4: S | K4: N | N4: 6 | O4: 155 | P4: 562 | Q4: 2975 | R4: ++ | S4: = | T4: =IF(AND(C4<>"X",B4<>""),"Assente",IF(AND(B4="",C4="X"),"??","")) -> ?? | U4: =IF(AND(C4="X",D4="M"),IF(H4<>"",IF(H4<20.7,"Sottopeso",IF(H4>27.8,"Sovrappeso","Normopeso")),""),IF(AND(C4="X",D4="F"),IF(H4<>"",IF(H4<19.1,"Sottopeso",IF(H4>27.3,"Sovrappeso","Normopeso")),""),"")) -> Sottopeso
A5: 3 | C5: X | D5: F | E5: 2000 | F5: 55.1 | G5: 159 | H5: 21.79502393 | I5: D | K5: I | N5: 16 | O5: 175 | P5: 575 | Q5: 2709 | R5: ++ | S5: + | T5: ?? | U5: Normopeso
A6: 4 | C6: X | D6: M | E6: 2001 | F6: 52.1 | G6: 150 | H6: 23.15555556 | I6: D | K6: S | N6: 9 | O6: 149 | P6: 532 | Q6: 2300 | R6: + | S6: ++ | T6: ?? | U6: Normopeso
A7: 5 | C7: X | D7: M | E7: 2000 | F7: 45.5 | G7: 161 | H7: 17.55333513 | I7: S | K7: I | N7: -22 | O7: 167 | P7: 544 | Q7: 3001 | R7: ++ | S7: = | T7: ?? | U7: Sottopeso
A8: 6 | D8: F | E8: 2000
A9: 7 | C9: X | D9: F | E9: 2002 | F9: 70.7 | G9: 167 | H9: 25.35049661 | I9: S | K9: N | N9: 5 | O9: 120 | P9: 706 | Q9: 4305 | R9: + | S9: = | T9: ?? | U9: Normopeso
A10: 8 | C10: X | D10: M | E10: 1999 | F10: 53.8 | G10: 158 | H10: 21.55103349 | I10: D | K10: N | N10: 3 | O10: 235 | P10: 472 | Q10: 2209 | R10: + | S10: ++ | T10: ?? | U10: Normopeso
A11: 9 | C11: X | D11: F | E11: 2001 | F11: 49.1 | G11: 167 | H11: 17.60550755 | I11: D | K11: S | N11: 3 | O11: 147 | P11: 535 | T11: ?? | U11: Sottopeso
A12: 10 | C12: X | D12: F | E12: 2001 | F12: 45.7 | G12: 158 | H12: 18.30636116 | I12: D | K12: N | N12: 2 | O12: 173 | P12: 575 | Q12: 3700 | R12: + | S12: + | T12: ?? | U12: Sottopeso
A13: 11 | C13: X | D13: M | E13: 2001 | F13: 52.5 | G13: 161 | H13: 20.25384823 | I13: S | K13: I | N13: -1 | O13: 82 | P13: 932 | R13: + | S13: + | T13: ?? | U13: Sottopeso
A14: 12 | C14: X | D14: F | E14: 2000 | F14: 69 | G14: 158 | H14: 27.63980131 | I14: D | K14: N | N14: 3 | O14: 102 | P14: 682 | Q14: 3505 | R14: + | S14: - | T14: ?? | U14: Sovrappeso
A15: 13 | D15: F | E15: 2000
A16: 14 | C16: X | D16: M | E16: 1998 | F16: 68 | G16: 174 | H16: 22.46003435 | I16: D | K16: N | N16: 12 | O16: 229 | P16: 475 | Q16: 2259 | R16: = | S16: + | T16: ?? | U16: Normopeso
A17: 15 | C17: X | D17: F | E17: 2002 | F17: 49.2 | G17: 154 | H17: 20.74548828 | I17: D | K17: I | N17: -8 | O17: 130 | P17: 719 | Q17: 3705 | R17: - | S17: = | T17: ?? | U17: Normopeso
A18: 16 | C18: X | D18: F | E18: 2000 | F18: 53.2 | G18: 155 | H18: 22.14360042 | I18: D | K18: N | N18: 5 | O18: 132 | P18: 650 | Q18: 3304 | R18: + | S18: = | T18: ?? | U18: Normopeso
A19: 17 | C19: X | D19: F | E19: 2001 | F19: 41 | G19: 151 | H19: 17.98166747 | I19: D | K19: S | N19: 7 | O19: 183 | P19: 520 | Q19: 2505 | R19: + | S19: ++ | T19: ?? | U19: Sottopeso
A20: 18 | C20: X | D20: M | E20: 1997 | F20: 58.7 | G20: 159 | H20: 23.21901824 | I20: D | K20: N | N20: 16 | O20: 222 | P20: 459 | Q20: 2207 | R20: ++ | S20: + | T20: ?? | U20: Normopeso
A21: 19 | C21: X | D21: F | E21: 2001 | F21: 50 | G21: 154 | H21: 21.08281329 | I21: D | K21: N | N21: -3 | O21: 160 | P21: 565 | Q21: 2680 | R21: + | S21: - | T21: ?? | U21: Normopeso
A22: 20 | C22: X | D22: F | E22: 1999 | F22: 48.2 | G22: 156 | H22: 19.80604865 | I22: D | K22: S | N22: -7 | O22: 147 | P22: 547 | Q22: 2670 | R22: ++ | S22: = | T22: ?? | U22: Normopeso
A23: 21 | C23: X | D23: F | E23: 1999 | F23: 42.6 | G23: 162 | H23: 16.23228166 | I23: D | K23: N | N23: 0 | O23: 159 | P23: 587 | Q23: 2840 | R23: + | S23: = | T23: ?? | U23: Sottopeso
A24: 22 | D24: M | E24: 1999
A25: 23 | C25: X | D25: M | E25: 1998 | F25: 80.1 | G25: 174 | H25: 26.45659929 | I25: D | K25: I | N25: -11 | O25: 172 | P25: 635 | R25: + | S25: = | T25: ?? | U25: Normopeso
A26: 24
A27: 25
A28: 26
A29: 27
A30: 28
A31: 29
A32: 30
B35: Alunni : | C35: =COUNTIF(B3:B32,"<>"&"") -> 0 | I35: Dx | J35: Sx | K35: S | L35: NS | M35: I
B36: Media | C36: =COUNTIF(C3:C32,"X")/C35 ->  | D36: =(COUNTIFS(D3:D32,"M",C3:C32,"X")+COUNTIFS(D3:D32,"F",C3:C32,"X"))/C39 -> 1 | E36: =AVERAGE(E3:E32) -> 2000.043478 | F36: =AVERAGEIFS(F3:F32,C3:C32,"X") -> 54.045 | G36: =AVERAGEIFS(G3:G32,C3:C32,"X") -> 159.25 | H36: =AVERAGEIFS(H3:H32,C3:C32,"X") -> 21.20603865 | I36: =(COUNTIFS(I3:I32,"D",C3:C32,"X")/C39) -> 0.8 | J36: =(COUNTIFS(I3:I32,"S",C3:C32,"X")/C39) -> 0.2 | K36: =(COUNTIFS(K3:K32,"S",C3:C32,"X")/C39) -> 0.2 | L36: =(COUNTIFS(K3:K32,"N",C3:C32,"X")/C39) -> 0.55 | M36: =(COUNTIFS(K3:K32,"I",C3:C32,"X")/C39) -> 0.25 | N36: =AVERAGEIFS(N3:N32,C3:C32,"X") -> 1.95 | O36: =AVERAGEIFS(O3:O32,C3:C32,"X") -> 156.8 | P36: =AVERAGEIFS(P3:P32,C3:C32,"X") -> 597.7 | Q36: =AVERAGEIFS(Q3:Q32,C3:C32,"X") -> 2978.176471 | R36: =COUNTIF(R$3:R$32,"=++")/COUNTIFS(R$3:R$32,"<>X",R$3:R$32,"<>") -> 0.2631578947 | S36: =COUNTIF(S$3:S$32,"=++")/COUNTIFS(S$3:S$32,"<>X",S$3:S$32,"<>") -> 0.1578947368
B37: Media maschi | C37: =COUNTIFS(C3:C32,"X",D3:D32,"M")/C35 ->  | D37: =COUNTIFS(D3:D32,"M",C3:C32,"X")/C39 -> 0.35 | E37: =AVERAGEIFS(E3:E32,C3:C32,"X",D3:D32,"M") -> 1999.142857 | F37: =AVERAGEIFS(F3:F32,C3:C32,"X",D3:D32,"M") -> 58.67142857 | G37: =AVERAGEIFS(G3:G32,C3:C32,"X",D3:D32,"M") -> 162.4285714 | H37: =AVERAGEIFS(H3:H32,C3:C32,"X",D3:D32,"M") -> 22.0927749 | I37: =(COUNTIFS(I3:I32,"D",C3:C32,"X",D3:D32,"M")/COUNTIFS(D3:D32,"M",C3:C32,"X")) -> 0.7142857143 | J37: =(COUNTIFS(I3:I32,"S",C3:C32,"X",D3:D32,"M")/COUNTIFS(D3:D32,"M",C3:C32,"X")) -> 0.2857142857 | K37: =(COUNTIFS(K3:K32,"S",C3:C32,"X",D3:D32,"M")/COUNTIFS(D3:D32,"M",C3:C32,"X")) -> 0.1428571429 | L37: =(COUNTIFS(K3:K32,"N",C3:C32,"X",D3:D32,"M")/COUNTIFS(D3:D32,"M",C3:C32,"X")) -> 0.4285714286 | M37: =(COUNTIFS(K3:K32,"I",C3:C32,"X",D3:D32,"M")/COUNTIFS(D3:D32,"M",C3:C32,"X")) -> 0.4285714286 | N37: =AVERAGEIFS(N3:N32,C3:C32,"X",D3:D32,"M") -> 0.8571428571 | O37: =AVERAGEIFS(O3:O32,C3:C32,"X",D3:D32,"M") -> 179.4285714 | P37: =AVERAGEIFS(P3:P32,C3:C32,"X",D3:D32,"M") -> 578.4285714 | Q37: =AVERAGEIFS(Q3:Q32,C3:C32,"X",D3:D32,"M") -> 2395.2 | R37: =COUNTIF(R$3:R$32,"=+")/COUNTIFS(R$3:R$32,"<>X",R$3:R$32,"<>") -> 0.5789473684 | S37: =COUNTIF(S$3:S$32,"=+")/COUNTIFS(S$3:S$32,"<>X",S$3:S$32,"<>") -> 0.2631578947
B38: Media femmine | C38: =COUNTIFS(C4:C32,"X",D4:D32,"F")/C35 ->  | D38: =COUNTIFS(D3:D32,"F",C3:C32,"X")/C39 -> 0.65 | E38: =AVERAGEIFS(E3:E32,C3:C32,"X",D3:D32,"F") -> 2000.615385 | F38: =AVERAGEIFS(F3:F32,C3:C32,"X",D3:D32,"F") -> 51.55384615 | G38: =AVERAGEIFS(G3:G32,C3:C32,"X",D3:D32,"F") -> 157.5384615 | H38: =AVERAGEIFS(H3:H32,C3:C32,"X",D3:D32,"F") -> 20.72856529 | I38: =(COUNTIFS(I3:I32,"D",C3:C32,"X",D3:D32,"F")/COUNTIFS(D3:D32,"F",C3:C32,"X")) -> 0.8461538462 | J38: =(COUNTIFS(I3:I32,"S",C3:C32,"X",D3:D32,"F")/COUNTIFS(D3:D32,"F",C3:C32,"X")) -> 0.1538461538 | K38: =(COUNTIFS(K3:K32,"S",C3:C32,"X",D3:D32,"F")/COUNTIFS(D3:D32,"F",C3:C32,"X")) -> 0.2307692308 | L38: =(COUNTIFS(K3:K32,"N",C3:C32,"X",D3:D32,"F")/COUNTIFS(D3:D32,"F",C3:C32,"X")) -> 0.6153846154 | M38: =(COUNTIFS(K3:K32,"N",C3:C32,"X",D3:D32,"F")/COUNTIFS(D3:D32,"F",C3:C32,"X")) -> 0.6153846154 | N38: =AVERAGEIFS(N3:N32,C3:C32,"X",D3:D32,"F") -> 2.538461538 | O38: =AVERAGEIFS(O3:O32,C3:C32,"X",D3:D32,"F") -> 144.6153846 | P38: =AVERAGEIFS(P3:P32,C3:C32,"X",D3:D32,"F") -> 608.0769231 | Q38: =AVERAGEIFS(Q3:Q32,C3:C32,"X",D3:D32,"F") -> 3221.083333 | R38: =COUNTIF(R$3:R$32,"==")/COUNTIFS(R$3:R$32,"<>X",R$3:R$32,"<>") -> 0.1052631579 | S38: =COUNTIF(S$3:S$32,"==")/COUNTIFS(S$3:S$32,"<>X",S$3:S$32,"<>") -> 0.4736842105
B39: Presenti | C39: =COUNTIF(C3:C32,"X") -> 20 | N39: Record | R39: =COUNTIF(R$3:R$32,"-")/COUNTIFS(R$3:R$32,"<>X",R$3:R$32,"<>") -> 0.05263157895 | S39: =COUNTIF(S$3:S$32,"-")/COUNTIFS(S$3:S$32,"<>X",S$3:S$32,"<>") -> 0.1052631579
N40: =MAX(N3:N32) -> 16 | O40: =MAX(O3:O32) -> 235 | P40: =MIN(P3:P32) -> 459 | Q40: =MIN(Q3:Q32) -> 2207 | R40: =COUNTIF(R$3:R$32,"--")/COUNTIFS(R$3:R$32,"<>X",R$3:R$32,"<>") -> 0 | S40: =COUNTIF(S$3:S$32,"--")/COUNTIFS(S$3:S$32,"<>X",S$3:S$32,"<>") -> 0
N41: =INDEX(B3:B32,MATCH(N40,N3:N32,0),1) -> 0 | O41: =INDEX(B3:B32,MATCH(O40,O3:O32,0),1) -> 0 | P41: =INDEX(B3:B32,MATCH(P40,P3:P32,0),1) -> 0 | Q41: =INDEX(B3:B32,MATCH(Q40,Q3:Q32,0),1) -> 0

Sheet 1TC
A2: N° | B2: Alunno | C2: Presente | D2: Sex | E2: Anno | F2: Peso | G2: Statura | H2: BMI | I2: S/D | K2: Sportivo-Nsportivo-Intermedio | N2: Flessibilità | O2: Ldf | P2: Velocità | Q2: Destrezza | R2: Volley | S2: Basket | T2: Note
A3: 1 | D3: M | H3: =IF(C3 = "X",F3/(G3/100)^2,"") ->  | T3: =IF(AND(C3<>"X",B3<>""),"Assente",IF(AND(B3="",C3="X"),"??","")) ->  | U3: =IF(AND(C3="X",D3="M"),IF(H3<>"",IF(H3<20.7,"Sottopeso",IF(H3>27.8,"Sovrappeso","Normopeso")),""),IF(AND(C3="X",D3="F"),IF(H3<>"",IF(H3<19.1,"Sottopeso",IF(H3>27.3,"Sovrappeso","Normopeso")),""),"")) -> 
A4: 2 | C4: X | D4: M | E4: 2001 | F4: 38.1 | G4: 155 | H4: 15.85848075 | I4: S | K4: I | N4: -18 | O4: 142 | P4: 575 | Q4: 2693 | R4: = | S4: = | T4: ?? | U4: Sottopeso
A5: 3 | D5: M
A6: 4 | C6: X | D6: M | E6: 2000 | F6: 74 | G6: 172 | H6: 25.01352082 | I6: D | K6: S | N6: -7 | O6: 167 | P6: 503 | Q6: 2584 | R6: = | S6: + | T6: ?? | U6: Normopeso
A7: 5 | C7: X | D7: M | E7: 2001 | F7: 65.6 | G7: 149 | H7: 29.54821855 | I7: D | K7: I | N7: -10 | O7: 147 | P7: 622 | Q7: 3063 | R7: - | S7: ++ | T7: ?? | U7: Sovrappeso
A8: 6 | C8: X | D8: M | E8: 2001 | F8: 50.4 | G8: 170 | H8: 17.43944637 | I8: D | K8: I | N8: -7 | O8: 184 | P8: 525 | Q8: 2425 | R8: + | S8: + | T8: ?? | U8: Sottopeso
A9: 7 | C9: X | D9: M | E9: 2001 | F9: 51.3 | G9: 162 | H9: 19.5473251 | I9: D | K9: S | N9: 0 | O9: 184 | P9: 482 | Q9: 2263 | R9: + | S9: = | T9: ?? | U9: Sottopeso
A10: 8 | C10: X | D10: M | E10: 2001 | F10: 72.3 | G10: 174 | H10: 23.88030123 | I10: D | K10: S | N10: 10 | O10: 225 | P10: 436 | Q10: 2031 | R10: ++ | S10: + | T10: ?? | U10: Normopeso
A11: 9 | D11: M
A12: 10 | C12: X | D12: M | E12: 2000 | F12: 82.5 | G12: 164 | H12: 30.67370613 | I12: D | K12: I | N12: -18 | O12: 151 | P12: 563 | Q12: 3178 | R12: - | S12: = | T12: ?? | U12: Sovrappeso
A13: 11 | C13: X | D13: M | E13: 2000 | F13: 60.6 | G13: 169 | H13: 21.21774448 | I13: S | K13: I | N13: 6 | O13: 187 | P13: 513 | Q13: 2369 | R13: = | S13: = | T13: ?? | U13: Normopeso
A14: 12 | C14: X | D14: M | E14: 2001 | F14: 62.7 | G14: 175 | H14: 20.47346939 | I14: D | K14: I | N14: -14 | O14: 184 | P14: 469 | Q14: 2306 | R14: = | S14: ++ | T14: ?? | U14: Sottopeso
A15: 13 | D15: M
A16: 14 | C16: X | D16: M | E16: 2002 | F16: 83.5 | G16: 161 | H16: 32.21326338 | I16: D | K16: S | N16: -2 | O16: 147 | P16: 600 | Q16: 3028 | R16: + | S16: + | T16: ?? | U16: Sovrappeso
A17: 15 | D17: M
A18: 16 | C18: X | D18: F | E18: 2001 | F18: 61.7 | G18: 165 | H18: 22.66299357 | I18: D | K18: N | N18: 2 | O18: 157 | P18: 547 | Q18: 2634 | R18: ++ | S18: = | T18: ?? | U18: Normopeso
A19: 17 | C19: X | D19: F | E19: 2000 | F19: 43.7 | G19: 159 | H19: 17.28570863 | I19: D | K19: I | N19: -14 | O19: 132 | P19: 616 | Q19: 2935 | R19: - | S19: = | T19: ?? | U19: Sottopeso
A20: 18 | C20: X | D20: M | E20: 2001 | F20: 70.5 | G20: 172 | H20: 23.83044889 | I20: D | K20: S | N20: 10 | O20: 186 | P20: 487 | Q20: 2600 | R20: + | S20: + | T20: ?? | U20: Normopeso
A21: 19 | D21: M
A22: 20 | C22: X | D22: M | E22: 2000 | F22: 63.3 | G22: 164 | H22: 23.53509816 | I22: D | K22: S | N22: 10 | T22: ?? | U22: Normopeso
A23: 21 | D23: M
A24: 22 | D24: M
A25: 23 | D25: M
A26: 24 | C26: X | D26: M | E26: 2000 | F26: 79.4 | G26: 173 | H26: 26.52945304 | I26: D | K26: S | N26: -9 | O26: 181 | P26: 489 | Q26: 2412 | R26: + | S26: = | T26: ?? | U26: Normopeso
A27: 25 | C27: X | D27: M | E27: 2001 | F27: 68.1 | G27: 168 | H27: 24.12840136 | I27: D | K27: S | N27: 0 | O27: 180 | P27: 497 | Q27: 2261 | R27: ++ | S27: + | T27: ?? | U27: Normopeso
A28: 26
A29: 27
A30: 28
A31: 29
A32: 30
B35: Alunni : | C35: =COUNTIF(B3:B32,"<>"&"") -> 0 | I35: Dx | J35: Sx | K35: S | L35: NS | M35: I
B36: Media | C36: =COUNTIF(C3:C32,"X")/C35 ->  | D36: =(COUNTIFS(D3:D32,"M",C3:C32,"X")+COUNTIFS(D3:D32,"F",C3:C32,"X"))/C39 -> 1 | E36: =AVERAGE(E3:E32) -> 2000.6875 | F36: =AVERAGEIFS(F3:F32,C3:C32,"X") -> 64.23125 | G36: =AVERAGEIFS(G3:G32,C3:C32,"X") -> 165.75 | H36: =AVERAGEIFS(H3:H32,C3:C32,"X") -> 23.36484874 | I36: =(COUNTIFS(I3:I32,"D",C3:C32,"X")/C39) -> 0.875 | J36: =(COUNTIFS(I3:I32,"S",C3:C32,"X")/C39) -> 0.125 | K36: =(COUNTIFS(K3:K32,"S",C3:C32,"X")/C39) -> 0.5 | L36: =(COUNTIFS(K3:K32,"N",C3:C32,"X")/C39) -> 0.0625 | M36: =(COUNTIFS(K3:K32,"I",C3:C32,"X")/C39) -> 0.4375 | N36: =AVERAGEIFS(N3:N32,C3:C32,"X") -> -3.8125 | O36: =AVERAGEIFS(O3:O32,C3:C32,"X") -> 170.2666667 | P36: =AVERAGEIFS(P3:P32,C3:C32,"X") -> 528.2666667 | Q36: =AVERAGEIFS(Q3:Q32,C3:C32,"X") -> 2585.466667 | R36: =COUNTIF(R$3:R$32,"=++")/COUNTIFS(R$3:R$32,"<>X",R$3:R$32,"<>") -> 0.2 | S36: =COUNTIF(S$3:S$32,"=++")/COUNTIFS(S$3:S$32,"<>X",S$3:S$32,"<>") -> 0.1333333333
B37: Media maschi | C37: =COUNTIFS(C3:C32,"X",D3:D32,"M")/C35 ->  | D37: =COUNTIFS(D3:D32,"M",C3:C32,"X")/C39 -> 0.875 | E37: =AVERAGEIFS(E3:E32,C3:C32,"X",D3:D32,"M") -> 2000.714286 | F37: =AVERAGEIFS(F3:F32,C3:C32,"X",D3:D32,"M") -> 65.87857143 | G37: =AVERAGEIFS(G3:G32,C3:C32,"X",D3:D32,"M") -> 166.2857143 | H37: =AVERAGEIFS(H3:H32,C3:C32,"X",D3:D32,"M") -> 23.84920555 | I37: =(COUNTIFS(I3:I32,"D",C3:C32,"X",D3:D32,"M")/COUNTIFS(D3:D32,"M",C3:C32,"X")) -> 0.8571428571 | J37: =(COUNTIFS(I3:I32,"S",C3:C32,"X",D3:D32,"M")/COUNTIFS(D3:D32,"M",C3:C32,"X")) -> 0.1428571429 | K37: =(COUNTIFS(K3:K32,"S",C3:C32,"X",D3:D32,"M")/COUNTIFS(D3:D32,"M",C3:C32,"X")) -> 0.5714285714 | L37: =(COUNTIFS(K3:K32,"N",C3:C32,"X",D3:D32,"M")/COUNTIFS(D3:D32,"M",C3:C32,"X")) -> 0 | M37: =(COUNTIFS(K3:K32,"I",C3:C32,"X",D3:D32,"M")/COUNTIFS(D3:D32,"M",C3:C32,"X")) -> 0.4285714286 | N37: =AVERAGEIFS(N3:N32,C3:C32,"X",D3:D32,"M") -> -3.5 | O37: =AVERAGEIFS(O3:O32,C3:C32,"X",D3:D32,"M") -> 174.2307692 | P37: =AVERAGEIFS(P3:P32,C3:C32,"X",D3:D32,"M") -> 520.0769231 | Q37: =AVERAGEIFS(Q3:Q32,C3:C32,"X",D3:D32,"M") -> 2554.846154 | R37: =COUNTIF(R$3:R$32,"=+")/COUNTIFS(R$3:R$32,"<>X",R$3:R$32,"<>") -> 0.3333333333 | S37: =COUNTIF(S$3:S$32,"=+")/COUNTIFS(S$3:S$32,"<>X",S$3:S$32,"<>") -> 0.4
B38: Media femmine | C38: =COUNTIFS(C4:C32,"X",D4:D32,"F")/C35 ->  | D38: =COUNTIFS(D3:D32,"F",C3:C32,"X")/C39 -> 0.125 | E38: =AVERAGEIFS(E3:E32,C3:C32,"X",D3:D32,"F") -> 2000.5 | F38: =AVERAGEIFS(F3:F32,C3:C32,"X",D3:D32,"F") -> 52.7 | G38: =AVERAGEIFS(G3:G32,C3:C32,"X",D3:D32,"F") -> 162 | H38: =AVERAGEIFS(H3:H32,C3:C32,"X",D3:D32,"F") -> 19.9743511 | I38: =(COUNTIFS(I3:I32,"D",C3:C32,"X",D3:D32,"F")/COUNTIFS(D3:D32,"F",C3:C32,"X")) -> 1 | J38: =(COUNTIFS(I3:I32,"S",C3:C32,"X",D3:D32,"F")/COUNTIFS(D3:D32,"F",C3:C32,"X")) -> 0 | K38: =(COUNTIFS(K3:K32,"S",C3:C32,"X",D3:D32,"F")/COUNTIFS(D3:D32,"F",C3:C32,"X")) -> 0 | L38: =(COUNTIFS(K3:K32,"N",C3:C32,"X",D3:D32,"F")/COUNTIFS(D3:D32,"F",C3:C32,"X")) -> 0.5 | M38: =(COUNTIFS(K3:K32,"N",C3:C32,"X",D3:D32,"F")/COUNTIFS(D3:D32,"F",C3:C32,"X")) -> 0.5 | N38: =AVERAGEIFS(N3:N32,C3:C32,"X",D3:D32,"F") -> -6 | O38: =AVERAGEIFS(O3:O32,C3:C32,"X",D3:D32,"F") -> 144.5 | P38: =AVERAGEIFS(P3:P32,C3:C32,"X",D3:D32,"F") -> 581.5 | Q38: =AVERAGEIFS(Q3:Q32,C3:C32,"X",D3:D32,"F") -> 2784.5 | R38: =COUNTIF(R$3:R$32,"==")/COUNTIFS(R$3:R$32,"<>X",R$3:R$32,"<>") -> 0.2666666667 | S38: =COUNTIF(S$3:S$32,"==")/COUNTIFS(S$3:S$32,"<>X",S$3:S$32,"<>") -> 0.4666666667
B39: Presenti | C39: =COUNTIF(C3:C32,"X") -> 16 | N39: Record | R39: =COUNTIF(R$3:R$32,"-")/COUNTIFS(R$3:R$32,"<>X",R$3:R$32,"<>") -> 0.2 | S39: =COUNTIF(S$3:S$32,"-")/COUNTIFS(S$3:S$32,"<>X",S$3:S$32,"<>") -> 0
N40: =MAX(N3:N32) -> 10 | O40: =MAX(O3:O32) -> 225 | P40: =MIN(P3:P32) -> 436 | Q40: =MIN(Q3:Q32) -> 2031 | R40: =COUNTIF(R$3:R$32,"--")/COUNTIFS(R$3:R$32,"<>X",R$3:R$32,"<>") -> 0 | S40: =COUNTIF(S$3:S$32,"--")/COUNTIFS(S$3:S$32,"<>X",S$3:S$32,"<>") -> 0
N41: =INDEX(B3:B32,MATCH(N40,N3:N32,0),1) -> 0 | O41: =INDEX(B3:B32,MATCH(O40,O3:O32,0),1) -> 0 | P41: =INDEX(B3:B32,MATCH(P40,P3:P32,0),1) -> 0 | Q41: =INDEX(B3:B32,MATCH(Q40,Q3:Q32,0),1) -> 0

Sheet 1EA
A1: 1EA
A2: N° | B2: Alunno | C2: Presente | D2: Sex | E2: Anno | F2: Peso | G2: Statura | H2: BMI | I2: S/D | K2: Sportivo-Nsportivo-Intermedio | N2: Flessibilità | O2: Ldf | P2: Velocità | Q2: Destrezza | R2: Volley | S2: Basket | T2: Note
A3: 1 | C3: X | D3: M | E3: 2001 | F3: 54.4 | G3: 166 | H3: =IF(C3 = "X",F3/(G3/100)^2,"") -> 19.74161707 | I3: D | K3: I | N3: -13 | O3: 177 | P3: 537 | Q3: 2625 | R3: = | T3: =IF(AND(C3<>"X",B3<>""),"Assente",IF(AND(B3="",C3="X"),"??","")) -> ?? | U3: =IF(AND(C3="X",D3="M"),IF(H3<>"",IF(H3<20.7,"Sottopeso",IF(H3>27.8,"Sovrappeso","Normopeso")),""),IF(AND(C3="X",D3="F"),IF(H3<>"",IF(H3<19.1,"Sottopeso",IF(H3>27.3,"Sovrappeso","Normopeso")),""),"")) -> Sottopeso
A4: 2 | C4: X | D4: M | E4: 2000 | F4: 75 | G4: 174 | H4: =IF(C4 = "X",F4/(G4/100)^2,"") -> 24.77209671 | I4: D | K4: S | N4: -4 | O4: 160 | P4: 544 | Q4: 2647 | R4: + | T4: =IF(AND(C4<>"X",B4<>""),"Assente",IF(AND(B4="",C4="X"),"??","")) -> ?? | U4: =IF(AND(C4="X",D4="M"),IF(H4<>"",IF(H4<20.7,"Sottopeso",IF(H4>27.8,"Sovrappeso","Normopeso")),""),IF(AND(C4="X",D4="F"),IF(H4<>"",IF(H4<19.1,"Sottopeso",IF(H4>27.3,"Sovrappeso","Normopeso")),""),"")) -> Normopeso
A5: 3 | C5: X | D5: F | E5: 2000 | F5: 63.3 | G5: 152 | H5: 27.39785319 | I5: D | K5: S | N5: 0 | O5: 123 | P5: 635 | Q5: 2637 | R5: = | T5: ?? | U5: Sovrappeso
A6: 4 | C6: X | D6: M | E6: 2000 | F6: 74.2 | G6: 181 | H6: 22.64888129 | I6: D | K6: N | N6: -10 | O6: 190 | P6: 500 | Q6: 2637 | R6: = | T6: ?? | U6: Normopeso
A7: 5
A8: 6
A9: 7 | C9: X | D9: F | E9: 2000 | F9: 62.3 | G9: 161 | H9: 24.03456657 | I9: D | K9: S | N9: 9 | O9: 157 | P9: 593 | Q9: 2787 | R9: + | T9: ?? | U9: Normopeso
A10: 8 | C10: X | E10: 2001 | F10: 59.5 | G10: 178 | H10: 18.77919455 | I10: D | K10: I | N10: -26 | O10: 209 | P10: 497 | Q10: 2472 | R10: + | T10: ??
A11: 9 | C11: X | D11: F | F11: 43.4 | G11: 162 | H11: 16.53711324 | I11: D | K11: S | N11: -3 | O11: 160 | P11: 625 | Q11: 3296 | R11: = | T11: ?? | U11: Sottopeso
A12: 10
A13: 11
A14: 12 | C14: X | D14: F | F14: 74 | G14: 170 | H14: 25.60553633 | I14: D | K14: S | N14: 19 | O14: 153 | P14: 612 | Q14: 3131 | R14: ++ | T14: ?? | U14: Normopeso
A15: 13 | C15: X | D15: F | F15: 63.2 | G15: 162 | H15: 24.08169486 | I15: D | K15: S | N15: 3 | O15: 158 | P15: 584 | Q15: 3009 | R15: ++ | T15: ?? | U15: Normopeso
A16: 14
A17: 15
A18: 16 | C18: X | D18: F | F18: 59.9 | G18: 174 | H18: 19.78464791 | I18: D | K18: S | N18: -7 | O18: 163 | P18: 494 | Q18: 2744 | R18: ++ | T18: ?? | U18: Normopeso
A19: 17 | C19: X | D19: M | F19: 51.4 | G19: 173 | H19: 17.17397842 | I19: D | K19: S | N19: -1 | O19: 163 | P19: 493 | Q19: 2353 | R19: + | T19: ?? | U19: Sottopeso
A20: 18
A21: 19
A22: 20 | C22: X | D22: M | F22: 48.2 | G22: 164 | H22: 17.92088043 | I22: D | K22: I | N22: 6 | O22: 233 | P22: 484 | Q22: 2054 | R22: + | T22: ?? | U22: Sottopeso
A23: 21 | C23: X | D23: M | F23: 73.6 | G23: 165 | H23: 27.03397612 | I23: S | K23: N | N23: -1 | R23: ++ | T23: ?? | U23: Normopeso
A24: 22
A25: 23 | C25: X | D25: M | E25: 2001 | F25: 54.6 | G25: 170 | H25: 18.89273356 | I25: D | K25: I | N25: -6 | O25: 208 | P25: 528 | Q25: 2363 | R25: ++ | T25: ?? | U25: Sottopeso
A26: 24
A27: 25
A28: 26
A29: 27
A30: 28
A31: 29
A32: 30
B35: Alunni : | C35: =COUNTIF(B3:B32,"<>"&"") -> 0 | I35: Dx | J35: Sx | K35: S | L35: NS | M35: I
B36: Media | C36: =COUNTIF(C3:C32,"X")/C35 ->  | D36: =(COUNTIFS(D3:D32,"M",C3:C32,"X")+COUNTIFS(D3:D32,"F",C3:C32,"X"))/C39 -> 0.9285714286 | E36: =AVERAGE(E3:E32) -> 2000.428571 | F36: =AVERAGEIFS(F3:F32,C3:C32,"X") -> 61.21428571 | G36: =AVERAGEIFS(G3:G32,C3:C32,"X") -> 168 | H36: =AVERAGEIFS(H3:H32,C3:C32,"X") -> 21.74319788 | I36: =(COUNTIFS(I3:I32,"D",C3:C32,"X")/C39) -> 0.9285714286 | J36: =(COUNTIFS(I3:I32,"S",C3:C32,"X")/C39) -> 0.07142857143 | K36: =(COUNTIFS(K3:K32,"S",C3:C32,"X")/C39) -> 0.5714285714 | L36: =(COUNTIFS(K3:K32,"N",C3:C32,"X")/C39) -> 0.1428571429 | M36: =(COUNTIFS(K3:K32,"I",C3:C32,"X")/C39) -> 0.2857142857 | N36: =AVERAGEIFS(N3:N32,C3:C32,"X") -> -2.428571429 | O36: =AVERAGEIFS(O3:O32,C3:C32,"X") -> 173.3846154 | P36: =AVERAGEIFS(P3:P32,C3:C32,"X") -> 548.1538462 | Q36: =AVERAGEIFS(Q3:Q32,C3:C32,"X") -> 2673.461538 | R36: =COUNTIF(R$3:R$32,"=++")/COUNTIFS(R$3:R$32,"<>X",R$3:R$32,"<>") -> 0.3571428571 | S36: =COUNTIF(S$3:S$32,"=++")/COUNTIFS(S$3:S$32,"<>X",S$3:S$32,"<>") -> 
B37: Media maschi | C37: =COUNTIFS(C3:C32,"X",D3:D32,"M")/C35 ->  | D37: =COUNTIFS(D3:D32,"M",C3:C32,"X")/C39 -> 0.5 | E37: =AVERAGEIFS(E3:E32,C3:C32,"X",D3:D32,"M") -> 2000.5 | F37: =AVERAGEIFS(F3:F32,C3:C32,"X",D3:D32,"M") -> 61.62857143 | G37: =AVERAGEIFS(G3:G32,C3:C32,"X",D3:D32,"M") -> 170.4285714 | H37: =AVERAGEIFS(H3:H32,C3:C32,"X",D3:D32,"M") -> 21.16916623 | I37: =(COUNTIFS(I3:I32,"D",C3:C32,"X",D3:D32,"M")/COUNTIFS(D3:D32,"M",C3:C32,"X")) -> 0.8571428571 | J37: =(COUNTIFS(I3:I32,"S",C3:C32,"X",D3:D32,"M")/COUNTIFS(D3:D32,"M",C3:C32,"X")) -> 0.1428571429 | K37: =(COUNTIFS(K3:K32,"S",C3:C32,"X",D3:D32,"M")/COUNTIFS(D3:D32,"M",C3:C32,"X")) -> 0.2857142857 | L37: =(COUNTIFS(K3:K32,"N",C3:C32,"X",D3:D32,"M")/COUNTIFS(D3:D32,"M",C3:C32,"X")) -> 0.2857142857 | M37: =(COUNTIFS(K3:K32,"I",C3:C32,"X",D3:D32,"M")/COUNTIFS(D3:D32,"M",C3:C32,"X")) -> 0.4285714286 | N37: =AVERAGEIFS(N3:N32,C3:C32,"X",D3:D32,"M") -> -4.142857143 | O37: =AVERAGEIFS(O3:O32,C3:C32,"X",D3:D32,"M") -> 188.5 | P37: =AVERAGEIFS(P3:P32,C3:C32,"X",D3:D32,"M") -> 514.3333333 | Q37: =AVERAGEIFS(Q3:Q32,C3:C32,"X",D3:D32,"M") -> 2446.5 | R37: =COUNTIF(R$3:R$32,"=+")/COUNTIFS(R$3:R$32,"<>X",R$3:R$32,"<>") -> 0.3571428571 | S37: =COUNTIF(S$3:S$32,"=+")/COUNTIFS(S$3:S$32,"<>X",S$3:S$32,"<>") -> 
B38: Media femmine | C38: =COUNTIFS(C4:C32,"X",D4:D32,"F")/C35 ->  | D38: =COUNTIFS(D3:D32,"F",C3:C32,"X")/C39 -> 0.4285714286 | E38: =AVERAGEIFS(E3:E32,C3:C32,"X",D3:D32,"F") -> 2000 | F38: =AVERAGEIFS(F3:F32,C3:C32,"X",D3:D32,"F") -> 61.01666667 | G38: =AVERAGEIFS(G3:G32,C3:C32,"X",D3:D32,"F") -> 163.5 | H38: =AVERAGEIFS(H3:H32,C3:C32,"X",D3:D32,"F") -> 22.90690202 | I38: =(COUNTIFS(I3:I32,"D",C3:C32,"X",D3:D32,"F")/COUNTIFS(D3:D32,"F",C3:C32,"X")) -> 1 | J38: =(COUNTIFS(I3:I32,"S",C3:C32,"X",D3:D32,"F")/COUNTIFS(D3:D32,"F",C3:C32,"X")) -> 0 | K38: =(COUNTIFS(K3:K32,"S",C3:C32,"X",D3:D32,"F")/COUNTIFS(D3:D32,"F",C3:C32,"X")) -> 1 | L38: =(COUNTIFS(K3:K32,"N",C3:C32,"X",D3:D32,"F")/COUNTIFS(D3:D32,"F",C3:C32,"X")) -> 0 | M38: =(COUNTIFS(K3:K32,"N",C3:C32,"X",D3:D32,"F")/COUNTIFS(D3:D32,"F",C3:C32,"X")) -> 0 | N38: =AVERAGEIFS(N3:N32,C3:C32,"X",D3:D32,"F") -> 3.5 | O38: =AVERAGEIFS(O3:O32,C3:C32,"X",D3:D32,"F") -> 152.3333333 | P38: =AVERAGEIFS(P3:P32,C3:C32,"X",D3:D32,"F") -> 590.5 | Q38: =AVERAGEIFS(Q3:Q32,C3:C32,"X",D3:D32,"F") -> 2934 | R38: =COUNTIF(R$3:R$32,"==")/COUNTIFS(R$3:R$32,"<>X",R$3:R$32,"<>") -> 0.2857142857 | S38: =COUNTIF(S$3:S$32,"==")/COUNTIFS(S$3:S$32,"<>X",S$3:S$32,"<>") -> 
B39: Presenti | C39: =COUNTIF(C3:C32,"X") -> 14 | N39: Record | R39: =COUNTIF(R$3:R$32,"-")/COUNTIFS(R$3:R$32,"<>X",R$3:R$32,"<>") -> 0 | S39: =COUNTIF(S$3:S$32,"-")/COUNTIFS(S$3:S$32,"<>X",S$3:S$32,"<>") -> 
N40: =MAX(N3:N32) -> 19 | O40: =MAX(O3:O32) -> 233 | P40: =MIN(P3:P32) -> 484 | Q40: =MIN(Q3:Q32) -> 2054 | R40: =COUNTIF(R$3:R$32,"--")/COUNTIFS(R$3:R$32,"<>X",R$3:R$32,"<>") -> 0 | S40: =COUNTIF(S$3:S$32,"--")/COUNTIFS(S$3:S$32,"<>X",S$3:S$32,"<>") -> 
N41: =INDEX(B3:B32,MATCH(N40,N3:N32,0),1) -> 0 | O41: =INDEX(B3:B32,MATCH(O40,O3:O32,0),1) -> 0 | P41: =INDEX(B3:B32,MATCH(P40,P3:P32,0),1) -> 0 | Q41: =INDEX(B3:B32,MATCH(Q40,Q3:Q32,0),1) -> 0

Sheet 1EB
A1: 1EB
A2: N° | B2: Alunno | C2: Presente | D2: Sex | E2: Anno | F2: Peso | G2: Statura | H2: BMI | I2: S/D | K2: Sportivo-Nsportivo-Intermedio | N2: Flessibilità | O2: Ldf | P2: Velocità | Q2: Destrezza | R2: Volley | S2: Basket | T2: Note
A3: 1 | C3: X | D3: F | E3: 2001 | F3: 64 | G3: 164 | H3: =IF(C3 = "X",F3/(G3/100)^2,"") -> 23.7953599 | I3: D | K3: S | N3: 3 | O3: 129 | P3: 659 | Q3: 3485 | R3: + | S3: + | T3: =IF(AND(C3<>"X",B3<>""),"Assente",IF(AND(B3="",C3="X"),"??","")) -> ?? | U3: =IF(AND(C3="X",D3="M"),IF(H3<>"",IF(H3<20.7,"Sottopeso",IF(H3>27.8,"Sovrappeso","Normopeso")),""),IF(AND(C3="X",D3="F"),IF(H3<>"",IF(H3<19.1,"Sottopeso",IF(H3>27.3,"Sovrappeso","Normopeso")),""),"")) -> Normopeso
A4: 2 | H4: =IF(C4 = "X",F4/(G4/100)^2,"") ->  | T4: =IF(AND(C4<>"X",B4<>""),"Assente",IF(AND(B4="",C4="X"),"??","")) ->  | U4: =IF(AND(C4="X",D4="M"),IF(H4<>"",IF(H4<20.7,"Sottopeso",IF(H4>27.8,"Sovrappeso","Normopeso")),""),IF(AND(C4="X",D4="F"),IF(H4<>"",IF(H4<19.1,"Sottopeso",IF(H4>27.3,"Sovrappeso","Normopeso")),""),"")) -> 
A5: 3 | C5: X | D5: M | E5: 2000 | F5: 97.2 | G5: 196 | H5: 25.30195752 | I5: D | K5: S | N5: -15 | O5: 153 | P5: 589 | Q5: 2931 | R5: + | S5: = | T5: ?? | U5: Normopeso
A6: 4 | C6: X | D6: M | E6: 2000 | F6: 45.4 | G6: 153 | H6: 19.39425007 | I6: S | K6: S | N6: -15 | O6: 211 | P6: 475 | Q6: 2175 | R6: ++ | S6: + | T6: ?? | U6: Sottopeso
A7: 5 | C7: X | D7: M | E7: 2000 | F7: 54.1 | G7: 169 | H7: 18.9419138 | I7: D | K7: I | N7: -2 | O7: 212 | P7: 465 | Q7: 2282 | R7: ++ | S7: + | T7: ?? | U7: Sottopeso
A8: 6 | C8: X | D8: M | E8: 2001 | F8: 63.6 | G8: 156 | H8: 26.13412229 | I8: D | K8: I | N8: -16 | T8: ?? | U8: Normopeso
A9: 7 | C9: X | D9: M | E9: 2000 | F9: 68.1 | G9: 168 | H9: 24.12840136 | I9: D | K9: I | N9: -3 | O9: 223 | P9: 475 | Q9: 2760 | R9: + | S9: ++ | T9: ?? | U9: Normopeso
A10: 8 | C10: X | D10: M | E10: 2000 | F10: 72.1 | G10: 185 | H10: 21.06647188 | I10: D | K10: S | N10: -5 | O10: 147 | P10: 606 | Q10: 2138 | R10: ++ | S10: ++ | T10: ?? | U10: Normopeso
A11: 9 | C11: X | D11: M | E11: 2001 | F11: 55.7 | G11: 174 | H11: 18.39741049 | I11: D | K11: S | N11: 0 | O11: 232 | P11: 469 | Q11: 2175 | R11: ++ | S11: ++ | T11: ?? | U11: Sottopeso
A12: 10 | C12: X | D12: M | E12: 2001 | F12: 52.3 | G12: 167 | H12: 18.75291334 | I12: D | K12: S | N12: -19 | O12: 180 | P12: 497 | Q12: 2150 | R12: ++ | S12: + | T12: ?? | U12: Sottopeso
A13: 11 | C13: X | D13: M | E13: 2000 | F13: 56.6 | G13: 165 | H13: 20.78971534 | I13: D | K13: I | N13: -11 | O13: 185 | P13: 540 | Q13: 2556 | R13: = | S13: + | T13: ?? | U13: Normopeso
A14: 12
A15: 13 | C15: X | D15: M | E15: 2000 | F15: 51.8 | G15: 164 | H15: 19.25936942 | I15: S | K15: I | N15: -19 | O15: 155 | P15: 562 | Q15: 2438 | R15: = | S15: + | T15: ?? | U15: Sottopeso
A16: 14 | C16: X | D16: M | E16: 2001 | F16: 75.8 | G16: 172 | H16: 25.62195782 | I16: S | K16: N | N16: -21 | O16: 140 | P16: 738 | Q16: 3413 | R16: - | S16: = | T16: ?? | U16: Normopeso
A17: 15 | C17: X | D17: M | E17: 2001 | F17: 59.2 | G17: 182 | H17: 17.87223765 | I17: D | K17: S | N17: -14 | O17: 214 | P17: 487 | Q17: 2450 | R17: ++ | S17: ++ | T17: ?? | U17: Sottopeso
A18: 16 | C18: X | D18: M | E18: 2001 | F18: 59.8 | G18: 173 | H18: 19.9806208 | I18: D | K18: I | N18: -6 | O18: 166 | P18: 530 | Q18: 2800 | R18: + | S18: = | T18: ?? | U18: Sottopeso
A19: 17 | C19: X | D19: M | E19: 2001 | F19: 56.5 | G19: 172 | H19: 19.09816117 | I19: S | K19: I | N19: 0 | O19: 205 | P19: 503 | Q19: 2365 | R19: + | S19: ++ | T19: ?? | U19: Sottopeso
A20: 18 | C20: X | D20: M | E20: 2001 | F20: 49.3 | G20: 165 | H20: 18.10835629 | I20: D | K20: I | N20: -15 | O20: 200 | P20: 540 | Q20: 2600 | R20: + | S20: + | T20: ?? | U20: Sottopeso
A21: 19 | C21: X | D21: F | E21: 2001 | F21: 42.8 | G21: 159 | H21: 16.92971006 | I21: D | K21: N | N21: 3 | O21: 176 | P21: 513 | Q21: 2546 | R21: + | S21: ++ | T21: ?? | U21: Sottopeso
A22: 20 | C22: X | D22: M | E22: 2001 | F22: 38.7 | G22: 147 | H22: 17.9092045 | I22: D | K22: I | N22: 2 | O22: 154 | P22: 628 | Q22: 2871 | R22: = | S22: + | T22: ?? | U22: Sottopeso
A23: 21 | C23: X | D23: M | E23: 2000 | F23: 53.8 | G23: 175 | H23: 17.56734694 | I23: D | K23: I | N23: -21 | O23: 161 | P23: 550 | Q23: 2890 | R23: = | S23: + | T23: ?? | U23: Sottopeso
A24: 22 | C24: X | D24: F | E24: 2000 | F24: 43.8 | G24: 167 | H24: 15.70511671 | I24: D | K24: I | N24: -16 | O24: 103 | P24: 609 | Q24: 3162 | R24: = | S24: = | T24: ?? | U24: Sottopeso
A25: 23
A26: 24
A27: 25 | C27: X | D27: M | E27: 2001 | F27: 70.2 | G27: 188 | H27: 19.86192847 | I27: D | K27: S | N27: -3 | O27: 173 | P27: 503 | Q27: 2440 | R27: ++ | S27: ++ | T27: ?? | U27: Sottopeso
A28: 26
A29: 27
A30: 28
A31: 29
A32: 30
B35: Alunni : | C35: =COUNTIF(B3:B32,"<>"&"") -> 0 | I35: Dx | J35: Sx | K35: S | L35: NS | M35: I
B36: Media | C36: =COUNTIF(C3:C32,"X")/C35 ->  | D36: =(COUNTIFS(D3:D32,"M",C3:C32,"X")+COUNTIFS(D3:D32,"F",C3:C32,"X"))/C39 -> 1 | E36: =AVERAGE(E3:E32) -> 2000.571429 | F36: =AVERAGEIFS(F3:F32,C3:C32,"X") -> 58.60952381 | G36: =AVERAGEIFS(G3:G32,C3:C32,"X") -> 169.5714286 | H36: =AVERAGEIFS(H3:H32,C3:C32,"X") -> 20.21983456 | I36: =(COUNTIFS(I3:I32,"D",C3:C32,"X")/C39) -> 0.8095238095 | J36: =(COUNTIFS(I3:I32,"S",C3:C32,"X")/C39) -> 0.1904761905 | K36: =(COUNTIFS(K3:K32,"S",C3:C32,"X")/C39) -> 0.380952381 | L36: =(COUNTIFS(K3:K32,"N",C3:C32,"X")/C39) -> 0.09523809524 | M36: =(COUNTIFS(K3:K32,"I",C3:C32,"X")/C39) -> 0.5238095238 | N36: =AVERAGEIFS(N3:N32,C3:C32,"X") -> -9.19047619 | O36: =AVERAGEIFS(O3:O32,C3:C32,"X") -> 175.95 | P36: =AVERAGEIFS(P3:P32,C3:C32,"X") -> 546.9 | Q36: =AVERAGEIFS(Q3:Q32,C3:C32,"X") -> 2631.35 | R36: =COUNTIF(R$3:R$32,"=++")/COUNTIFS(R$3:R$32,"<>X",R$3:R$32,"<>") -> 0.35 | S36: =COUNTIF(S$3:S$32,"=++")/COUNTIFS(S$3:S$32,"<>X",S$3:S$32,"<>") -> 0.35
B37: Media maschi | C37: =COUNTIFS(C3:C32,"X",D3:D32,"M")/C35 ->  | D37: =COUNTIFS(D3:D32,"M",C3:C32,"X")/C39 -> 0.8571428571 | E37: =AVERAGEIFS(E3:E32,C3:C32,"X",D3:D32,"M") -> 2000.555556 | F37: =AVERAGEIFS(F3:F32,C3:C32,"X",D3:D32,"M") -> 60.01111111 | G37: =AVERAGEIFS(G3:G32,C3:C32,"X",D3:D32,"M") -> 170.6111111 | H37: =AVERAGEIFS(H3:H32,C3:C32,"X",D3:D32,"M") -> 20.45479662 | I37: =(COUNTIFS(I3:I32,"D",C3:C32,"X",D3:D32,"M")/COUNTIFS(D3:D32,"M",C3:C32,"X")) -> 0.7777777778 | J37: =(COUNTIFS(I3:I32,"S",C3:C32,"X",D3:D32,"M")/COUNTIFS(D3:D32,"M",C3:C32,"X")) -> 0.2222222222 | K37: =(COUNTIFS(K3:K32,"S",C3:C32,"X",D3:D32,"M")/COUNTIFS(D3:D32,"M",C3:C32,"X")) -> 0.3888888889 | L37: =(COUNTIFS(K3:K32,"N",C3:C32,"X",D3:D32,"M")/COUNTIFS(D3:D32,"M",C3:C32,"X")) -> 0.05555555556 | M37: =(COUNTIFS(K3:K32,"I",C3:C32,"X",D3:D32,"M")/COUNTIFS(D3:D32,"M",C3:C32,"X")) -> 0.5555555556 | N37: =AVERAGEIFS(N3:N32,C3:C32,"X",D3:D32,"M") -> -10.16666667 | O37: =AVERAGEIFS(O3:O32,C3:C32,"X",D3:D32,"M") -> 183 | P37: =AVERAGEIFS(P3:P32,C3:C32,"X",D3:D32,"M") -> 538.6470588 | Q37: =AVERAGEIFS(Q3:Q32,C3:C32,"X",D3:D32,"M") -> 2554.941176 | R37: =COUNTIF(R$3:R$32,"=+")/COUNTIFS(R$3:R$32,"<>X",R$3:R$32,"<>") -> 0.35 | S37: =COUNTIF(S$3:S$32,"=+")/COUNTIFS(S$3:S$32,"<>X",S$3:S$32,"<>") -> 0.45
B38: Media femmine | C38: =COUNTIFS(C4:C32,"X",D4:D32,"F")/C35 ->  | D38: =COUNTIFS(D3:D32,"F",C3:C32,"X")/C39 -> 0.1428571429 | E38: =AVERAGEIFS(E3:E32,C3:C32,"X",D3:D32,"F") -> 2000.666667 | F38: =AVERAGEIFS(F3:F32,C3:C32,"X",D3:D32,"F") -> 50.2 | G38: =AVERAGEIFS(G3:G32,C3:C32,"X",D3:D32,"F") -> 163.3333333 | H38: =AVERAGEIFS(H3:H32,C3:C32,"X",D3:D32,"F") -> 18.81006223 | I38: =(COUNTIFS(I3:I32,"D",C3:C32,"X",D3:D32,"F")/COUNTIFS(D3:D32,"F",C3:C32,"X")) -> 1 | J38: =(COUNTIFS(I3:I32,"S",C3:C32,"X",D3:D32,"F")/COUNTIFS(D3:D32,"F",C3:C32,"X")) -> 0 | K38: =(COUNTIFS(K3:K32,"S",C3:C32,"X",D3:D32,"F")/COUNTIFS(D3:D32,"F",C3:C32,"X")) -> 0.3333333333 | L38: =(COUNTIFS(K3:K32,"N",C3:C32,"X",D3:D32,"F")/COUNTIFS(D3:D32,"F",C3:C32,"X")) -> 0.3333333333 | M38: =(COUNTIFS(K3:K32,"N",C3:C32,"X",D3:D32,"F")/COUNTIFS(D3:D32,"F",C3:C32,"X")) -> 0.3333333333 | N38: =AVERAGEIFS(N3:N32,C3:C32,"X",D3:D32,"F") -> -3.333333333 | O38: =AVERAGEIFS(O3:O32,C3:C32,"X",D3:D32,"F") -> 136 | P38: =AVERAGEIFS(P3:P32,C3:C32,"X",D3:D32,"F") -> 593.6666667 | Q38: =AVERAGEIFS(Q3:Q32,C3:C32,"X",D3:D32,"F") -> 3064.333333 | R38: =COUNTIF(R$3:R$32,"==")/COUNTIFS(R$3:R$32,"<>X",R$3:R$32,"<>") -> 0.25 | S38: =COUNTIF(S$3:S$32,"==")/COUNTIFS(S$3:S$32,"<>X",S$3:S$32,"<>") -> 0.2
B39: Presenti | C39: =COUNTIF(C3:C32,"X") -> 21 | N39: Record | R39: =COUNTIF(R$3:R$32,"-")/COUNTIFS(R$3:R$32,"<>X",R$3:R$32,"<>") -> 0.05 | S39: =COUNTIF(S$3:S$32,"-")/COUNTIFS(S$3:S$32,"<>X",S$3:S$32,"<>") -> 0
N40: =MAX(N3:N32) -> 3 | O40: =MAX(O3:O32) -> 232 | P40: =MIN(P3:P32) -> 465 | Q40: =MIN(Q3:Q32) -> 2138 | R40: =COUNTIF(R$3:R$32,"--")/COUNTIFS(R$3:R$32,"<>X",R$3:R$32,"<>") -> 0 | S40: =COUNTIF(S$3:S$32,"--")/COUNTIFS(S$3:S$32,"<>X",S$3:S$32,"<>") -> 0
N41: =INDEX(B3:B32,MATCH(N40,N3:N32,0),1) -> 0 | O41: =INDEX(B3:B32,MATCH(O40,O3:O32,0),1) -> 0 | P41: =INDEX(B3:B32,MATCH(P40,P3:P32,0),1) -> 0 | Q41: =INDEX(B3:B32,MATCH(Q40,Q3:Q32,0),1) -> 0

Sheet 1TE
A1: 1TE
A2: N° | B2: Alunno | C2: Presente | D2: Sex | E2: Anno | F2: Peso | G2: Statura | H2: BMI | I2: S/D | K2: Sportivo-Nsportivo-Intermedio | N2: Flessibilità | O2: Ldf | P2: Velocità | Q2: Destrezza | R2: Volley | S2: Basket | T2: Note
A3: 1 | C3: X | D3: M | E3: 2001 | F3: 45.9 | G3: 165 | H3: =IF(C3 = "X",F3/(G3/100)^2,"") -> 16.85950413 | I3: D | K3: S | N3: -2 | O3: 200 | P3: 496 | Q3: 2269 | R3: + | S3: ++ | T3: =IF(AND(C3<>"X",B3<>""),"Assente",IF(AND(B3="",C3="X"),"??","")) -> ?? | U3: =IF(AND(C3="X",D3="M"),IF(H3<>"",IF(H3<20.7,"Sottopeso",IF(H3>27.8,"Sovrappeso","Normopeso")),""),IF(AND(C3="X",D3="F"),IF(H3<>"",IF(H3<19.1,"Sottopeso",IF(H3>27.3,"Sovrappeso","Normopeso")),""),"")) -> Sottopeso
A4: 2 | C4: X | D4: M | E4: 2000 | F4: 60.6 | G4: 162 | H4: =IF(C4 = "X",F4/(G4/100)^2,"") -> 23.09099223 | I4: D | K4: S | N4: 0 | O4: 215 | P4: 459 | Q4: 2275 | R4: ++ | S4: ++ | T4: =IF(AND(C4<>"X",B4<>""),"Assente",IF(AND(B4="",C4="X"),"??","")) -> ?? | U4: =IF(AND(C4="X",D4="M"),IF(H4<>"",IF(H4<20.7,"Sottopeso",IF(H4>27.8,"Sovrappeso","Normopeso")),""),IF(AND(C4="X",D4="F"),IF(H4<>"",IF(H4<19.1,"Sottopeso",IF(H4>27.3,"Sovrappeso","Normopeso")),""),"")) -> Normopeso
A5: 3 | C5: X | D5: M | E5: 2001 | F5: 89.1 | G5: 166 | H5: 32.3341559 | I5: S | K5: I | N5: -18 | O5: 148 | P5: 578 | Q5: 2906 | R5: = | S5: = | T5: ?? | U5: Sovrappeso
A6: 4 | C6: X | D6: M | E6: 2001 | F6: 60.2 | G6: 171 | H6: 20.58753121 | I6: D | K6: S | N6: -2 | O6: 198 | P6: 515 | Q6: 2590 | R6: - | S6: + | T6: ?? | U6: Sottopeso
A7: 5 | C7: X | D7: M | E7: 2001 | F7: 43.5 | G7: 158 | H7: 17.42509213 | I7: D | K7: S | N7: -6 | O7: 202 | P7: 487 | Q7: 2134 | R7: = | S7: + | T7: ?? | U7: Sottopeso
A8: 6 | C8: X | D8: M | E8: 2001 | F8: 66.8 | G8: 177 | H8: 21.32209774 | I8: D | K8: S | N8: 1 | O8: 182 | P8: 609 | Q8: 2694 | R8: = | S8: ++ | T8: ?? | U8: Normopeso
A9: 7 | D9: F | E9: 1998
A10: 8 | C10: X | D10: M | E10: 2001 | F10: 58 | G10: 152 | H10: 25.10387812 | I10: S | K10: S | N10: -15 | O10: 156 | P10: 569 | Q10: 2519 | R10: + | S10: ++ | T10: ?? | U10: Normopeso
A11: 9 | C11: X | D11: M | E11: 2001 | F11: 63.6 | G11: 170 | H11: 22.00692042 | I11: D | K11: S | N11: 6 | O11: 194 | P11: 500 | Q11: 2290 | R11: = | S11: ++ | T11: ?? | U11: Normopeso
A12: 10 | D12: M | E12: 2001
A13: 11 | C13: X | D13: M | E13: 2001 | F13: 67.1 | G13: 154 | H13: 28.29313544 | I13: D | K13: I | N13: -9 | O13: 190 | P13: 569 | Q13: 2622 | R13: + | S13: + | T13: ?? | U13: Sovrappeso
A14: 12 | C14: X | D14: M | E14: 2002 | F14: 65.1 | G14: 169 | H14: 22.79331956 | I14: S | K14: S | N14: -15 | O14: 145 | P14: 634 | Q14: 2944 | R14: - | S14: + | T14: ?? | U14: Normopeso
A15: 13 | C15: X | D15: M | E15: 2001 | F15: 66.3 | G15: 174 | H15: 21.89853349 | I15: D | K15: S | N15: -28 | O15: 183 | P15: 547 | Q15: 2768 | R15: = | S15: + | T15: ?? | U15: Normopeso
A16: 14 | C16: X | D16: M | E16: 2000 | F16: 80.8 | G16: 178 | H16: 25.50183058 | I16: S | K16: I | N16: -13 | O16: 132 | P16: 603 | Q16: 2890 | R16: - | S16: = | T16: ?? | U16: Normopeso
A17: 15 | C17: X | D17: M | E17: 2001 | F17: 46.5 | G17: 155 | H17: 19.35483871 | I17: D | K17: S | N17: -7 | O17: 203 | P17: 515 | Q17: 2309 | R17: + | S17: ++ | T17: ?? | U17: Sottopeso
A18: 16 | C18: X | D18: M | E18: 2001 | F18: 54.5 | G18: 164 | H18: 20.26323617 | I18: D | K18: I | N18: -5 | O18: 204 | P18: 493 | Q18: 2228 | R18: + | S18: + | T18: ?? | U18: Sottopeso
A19: 17 | C19: X | D19: M | E19: 2001 | F19: 55.8 | G19: 174 | H19: 18.43043995 | I19: D | K19: I | N19: 3 | O19: 225 | P19: 466 | Q19: 2457 | R19: = | S19: + | T19: ?? | U19: Sottopeso
A20: 18 | C20: X | D20: M | E20: 2000 | F20: 57.6 | G20: 166 | H20: 20.90288866 | I20: D | K20: S | N20: 5 | O20: 175 | P20: 504 | Q20: 2225 | R20: + | S20: + | T20: ?? | U20: Normopeso
A21: 19 | C21: X | D21: M | E21: 2001 | F21: 43 | G21: 155 | H21: 17.89802289 | I21: D | K21: I | N21: -13 | O21: 183 | P21: 520 | Q21: 2497 | R21: = | S21: ++ | T21: ?? | U21: Sottopeso
A22: 20 | C22: X | D22: M | E22: 2001 | F22: 65.8 | G22: 156 | H22: 27.03813281 | I22: D | K22: I | N22: -7 | O22: 162 | P22: 584 | Q22: 2591 | R22: + | S22: ++ | T22: ?? | U22: Normopeso
A23: 21 | D23: M | E23: 2001
A24: 22 | D24: M | E24: 1999
A25: 23 | C25: X | D25: M | E25: 2000 | F25: 90.1 | G25: 180 | H25: 27.80864198 | I25: D | K25: I | N25: -4 | O25: 173 | P25: 534 | Q25: 2590 | R25: = | S25: = | T25: ?? | U25: Sovrappeso
A26: 24 | C26: X | D26: M | E26: 2001 | F26: 67.2 | G26: 163 | H26: 25.29263427 | I26: D | K26: S | N26: 8 | O26: 180 | P26: 559 | Q26: 2625 | R26: = | S26: + | T26: ?? | U26: Normopeso
A27: 25 | C27: X | D27: M | E27: 2001 | F27: 33 | G27: 147 | H27: 15.27141469 | I27: D | K27: S | N27: 5 | O27: 172 | P27: 559 | Q27: 2503 | R27: + | S27: + | T27: ?? | U27: Sottopeso
A28: 26 | C28: X | D28: M | E28: 2001 | F28: 50.8 | G28: 155 | H28: 21.144641 | I28: S | K28: S | N28: -6 | O28: 151 | P28: 568 | Q28: 2628 | R28: + | S28: + | T28: ?? | U28: Normopeso
A29: 27 | C29: X | D29: M | E29: 2001 | F29: 47.7 | G29: 159 | H29: 18.86792453 | I29: D | K29: S | N29: -8 | O29: 219 | P29: 500 | Q29: 2268 | R29: + | S29: = | T29: ?? | U29: Sottopeso
A30: 28
A31: 29
A32: 30
B35: Alunni : | C35: =COUNTIF(B3:B32,"<>"&"") -> 0 | I35: Dx | J35: Sx | K35: S | L35: NS | M35: I
B36: Media | C36: =COUNTIF(C3:C32,"X")/C35 ->  | D36: =(COUNTIFS(D3:D32,"M",C3:C32,"X")+COUNTIFS(D3:D32,"F",C3:C32,"X"))/C39 -> 1 | E36: =AVERAGE(E3:E32) -> 2000.703704 | F36: =AVERAGEIFS(F3:F32,C3:C32,"X") -> 59.95652174 | G36: =AVERAGEIFS(G3:G32,C3:C32,"X") -> 163.9130435 | H36: =AVERAGEIFS(H3:H32,C3:C32,"X") -> 22.15173072 | I36: =(COUNTIFS(I3:I32,"D",C3:C32,"X")/C39) -> 0.7826086957 | J36: =(COUNTIFS(I3:I32,"S",C3:C32,"X")/C39) -> 0.2173913043 | K36: =(COUNTIFS(K3:K32,"S",C3:C32,"X")/C39) -> 0.652173913 | L36: =(COUNTIFS(K3:K32,"N",C3:C32,"X")/C39) -> 0 | M36: =(COUNTIFS(K3:K32,"I",C3:C32,"X")/C39) -> 0.347826087 | N36: =AVERAGEIFS(N3:N32,C3:C32,"X") -> -5.652173913 | O36: =AVERAGEIFS(O3:O32,C3:C32,"X") -> 182.2608696 | P36: =AVERAGEIFS(P3:P32,C3:C32,"X") -> 537.7391304 | Q36: =AVERAGEIFS(Q3:Q32,C3:C32,"X") -> 2514 | R36: =COUNTIF(R$3:R$32,"=++")/COUNTIFS(R$3:R$32,"<>X",R$3:R$32,"<>") -> 0.04347826087 | S36: =COUNTIF(S$3:S$32,"=++")/COUNTIFS(S$3:S$32,"<>X",S$3:S$32,"<>") -> 0.347826087
B37: Media maschi | C37: =COUNTIFS(C3:C32,"X",D3:D32,"M")/C35 ->  | D37: =COUNTIFS(D3:D32,"M",C3:C32,"X")/C39 -> 1 | E37: =AVERAGEIFS(E3:E32,C3:C32,"X",D3:D32,"M") -> 2000.869565 | F37: =AVERAGEIFS(F3:F32,C3:C32,"X",D3:D32,"M") -> 59.95652174 | G37: =AVERAGEIFS(G3:G32,C3:C32,"X",D3:D32,"M") -> 163.9130435 | H37: =AVERAGEIFS(H3:H32,C3:C32,"X",D3:D32,"M") -> 22.15173072 | I37: =(COUNTIFS(I3:I32,"D",C3:C32,"X",D3:D32,"M")/COUNTIFS(D3:D32,"M",C3:C32,"X")) -> 0.7826086957 | J37: =(COUNTIFS(I3:I32,"S",C3:C32,"X",D3:D32,"M")/COUNTIFS(D3:D32,"M",C3:C32,"X")) -> 0.2173913043 | K37: =(COUNTIFS(K3:K32,"S",C3:C32,"X",D3:D32,"M")/COUNTIFS(D3:D32,"M",C3:C32,"X")) -> 0.652173913 | L37: =(COUNTIFS(K3:K32,"N",C3:C32,"X",D3:D32,"M")/COUNTIFS(D3:D32,"M",C3:C32,"X")) -> 0 | M37: =(COUNTIFS(K3:K32,"I",C3:C32,"X",D3:D32,"M")/COUNTIFS(D3:D32,"M",C3:C32,"X")) -> 0.347826087 | N37: =AVERAGEIFS(N3:N32,C3:C32,"X",D3:D32,"M") -> -5.652173913 | O37: =AVERAGEIFS(O3:O32,C3:C32,"X",D3:D32,"M") -> 182.2608696 | P37: =AVERAGEIFS(P3:P32,C3:C32,"X",D3:D32,"M") -> 537.7391304 | Q37: =AVERAGEIFS(Q3:Q32,C3:C32,"X",D3:D32,"M") -> 2514 | R37: =COUNTIF(R$3:R$32,"=+")/COUNTIFS(R$3:R$32,"<>X",R$3:R$32,"<>") -> 0.4347826087 | S37: =COUNTIF(S$3:S$32,"=+")/COUNTIFS(S$3:S$32,"<>X",S$3:S$32,"<>") -> 0.4782608696
B38: Media femmine | C38: =COUNTIFS(C4:C32,"X",D4:D32,"F")/C35 ->  | D38: =COUNTIFS(D3:D32,"F",C3:C32,"X")/C39 -> 0 | E38: =AVERAGEIFS(E3:E32,C3:C32,"X",D3:D32,"F") ->  | F38: =AVERAGEIFS(F3:F32,C3:C32,"X",D3:D32,"F") ->  | G38: =AVERAGEIFS(G3:G32,C3:C32,"X",D3:D32,"F") ->  | H38: =AVERAGEIFS(H3:H32,C3:C32,"X",D3:D32,"F") ->  | I38: =(COUNTIFS(I3:I32,"D",C3:C32,"X",D3:D32,"F")/COUNTIFS(D3:D32,"F",C3:C32,"X")) ->  | J38: =(COUNTIFS(I3:I32,"S",C3:C32,"X",D3:D32,"F")/COUNTIFS(D3:D32,"F",C3:C32,"X")) ->  | K38: =(COUNTIFS(K3:K32,"S",C3:C32,"X",D3:D32,"F")/COUNTIFS(D3:D32,"F",C3:C32,"X")) ->  | L38: =(COUNTIFS(K3:K32,"N",C3:C32,"X",D3:D32,"F")/COUNTIFS(D3:D32,"F",C3:C32,"X")) ->  | M38: =(COUNTIFS(K3:K32,"N",C3:C32,"X",D3:D32,"F")/COUNTIFS(D3:D32,"F",C3:C32,"X")) ->  | N38: =AVERAGEIFS(N3:N32,C3:C32,"X",D3:D32,"F") ->  | O38: =AVERAGEIFS(O3:O32,C3:C32,"X",D3:D32,"F") ->  | P38: =AVERAGEIFS(P3:P32,C3:C32,"X",D3:D32,"F") ->  | Q38: =AVERAGEIFS(Q3:Q32,C3:C32,"X",D3:D32,"F") ->  | R38: =COUNTIF(R$3:R$32,"==")/COUNTIFS(R$3:R$32,"<>X",R$3:R$32,"<>") -> 0.3913043478 | S38: =COUNTIF(S$3:S$32,"==")/COUNTIFS(S$3:S$32,"<>X",S$3:S$32,"<>") -> 0.1739130435
B39: Presenti | C39: =COUNTIF(C3:C32,"X") -> 23 | N39: Record | R39: =COUNTIF(R$3:R$32,"-")/COUNTIFS(R$3:R$32,"<>X",R$3:R$32,"<>") -> 0.1304347826 | S39: =COUNTIF(S$3:S$32,"-")/COUNTIFS(S$3:S$32,"<>X",S$3:S$32,"<>") -> 0
N40: =MAX(N3:N32) -> 8 | O40: =MAX(O3:O32) -> 225 | P40: =MIN(P3:P32) -> 459 | Q40: =MIN(Q3:Q32) -> 2134 | R40: =COUNTIF(R$3:R$32,"--")/COUNTIFS(R$3:R$32,"<>X",R$3:R$32,"<>") -> 0 | S40: =COUNTIF(S$3:S$32,"--")/COUNTIFS(S$3:S$32,"<>X",S$3:S$32,"<>") -> 0
N41: =INDEX(B3:B32,MATCH(N40,N3:N32,0),1) -> 0 | O41: =INDEX(B3:B32,MATCH(O40,O3:O32,0),1) -> 0 | P41: =INDEX(B3:B32,MATCH(P40,P3:P32,0),1) -> 0 | Q41: =INDEX(B3:B32,MATCH(Q40,Q3:Q32,0),1) -> 0

Sheet 1TD
A1: 1TD
A2: N° | B2: Alunno | C2: Presente | D2: Sex | E2: Anno | F2: Peso | G2: Statura | H2: BMI | I2: S/D | K2: Sportivo-Nsportivo-Intermedio | N2: Flessibilità | O2: Ldf | P2: Velocità | Q2: Destrezza | R2: Volley | S2: Basket | T2: Note
A3: 1 | C3: X | D3: F | E3: 2001 | F3: 53.2 | G3: 169 | H3: =IF(C3 = "X",F3/(G3/100)^2,"") -> 18.62679878 | I3: D | K3: N | N3: -30 | O3: 125 | P3: 606 | Q3: 2938 | R3: = | S3: + | T3: =IF(AND(C3<>"X",B3<>""),"Assente",IF(AND(B3="",C3="X"),"??","")) -> ?? | U3: =IF(AND(C3="X",D3="M"),IF(H3<>"",IF(H3<20.7,"Sottopeso",IF(H3>27.8,"Sovrappeso","Normopeso")),""),IF(AND(C3="X",D3="F"),IF(H3<>"",IF(H3<19.1,"Sottopeso",IF(H3>27.3,"Sovrappeso","Normopeso")),""),"")) -> Sottopeso
A4: 2 | C4: X | D4: M | E4: 1999 | F4: 75.3 | G4: 172 | H4: =IF(C4 = "X",F4/(G4/100)^2,"") -> 25.45294754 | I4: D | K4: I | N4: 0 | O4: 227 | P4: 484 | Q4: 2413 | R4: ++ | S4: ++ | T4: =IF(AND(C4<>"X",B4<>""),"Assente",IF(AND(B4="",C4="X"),"??","")) -> ?? | U4: =IF(AND(C4="X",D4="M"),IF(H4<>"",IF(H4<20.7,"Sottopeso",IF(H4>27.8,"Sovrappeso","Normopeso")),""),IF(AND(C4="X",D4="F"),IF(H4<>"",IF(H4<19.1,"Sottopeso",IF(H4>27.3,"Sovrappeso","Normopeso")),""),"")) -> Normopeso
A5: 3 | C5: X | D5: M | E5: 1999 | F5: 59.4 | G5: 164 | H5: 22.08506841 | I5: D | K5: I | N5: -2 | O5: 226 | P5: 450 | Q5: 2246 | R5: ++ | S5: ++ | T5: ?? | U5: Normopeso
A6: 4 | C6: X | D6: M | E6: 2001 | F6: 48.7 | G6: 161 | H6: =IF(C6 = "X",F6/(G6/100)^2,"") -> 18.78785541 | I6: D | K6: S | N6: -27 | O6: 188 | P6: 513 | Q6: 2406 | R6: ++ | S6: ++ | T6: ?? | U6: Sottopeso
A7: 5 | C7: X | D7: M | E7: 2001 | F7: 65.2 | G7: 171 | H7: 22.29745905 | I7: D | K7: I | N7: -5 | O7: 212 | P7: 469 | Q7: 2200 | R7: + | S7: + | T7: ?? | U7: Normopeso
A8: 6 | D8: M | E8: 2001
A9: 7 | C9: X | D9: M | E9: 2001 | F9: 90.7 | G9: 175 | H9: 29.61632653 | I9: S | K9: I | N9: -14 | O9: 131 | P9: 607 | Q9: 3368 | R9: - | S9: = | T9: ?? | U9: Sovrappeso
A10: 8 | C10: X | D10: M | E10: 2001 | F10: 69.7 | G10: 163 | H10: 26.23358049 | I10: D | K10: I | N10: -15 | O10: 153 | P10: 566 | Q10: 2778 | R10: - | S10: = | T10: ?? | U10: Normopeso
A11: 9 | C11: X | D11: M | E11: 2001 | F11: 57.8 | G11: 174 | H11: 19.0910292 | I11: D | K11: I | N11: -7 | O11: 195 | P11: 516 | Q11: 2565 | R11: + | S11: = | T11: ?? | U11: Sottopeso
A12: 10 | C12: X | D12: M | E12: 2001 | F12: 66.7 | G12: 176 | H12: 21.53279959 | I12: D | K12: S | N12: 3 | O12: 181 | P12: 504 | Q12: 2390 | R12: ++ | S12: + | T12: ?? | U12: Normopeso
A13: 11 | C13: X | D13: M | E13: 2001 | F13: 57.3 | G13: 152 | H13: 24.80090028 | I13: D | K13: I | N13: 4 | O13: 164 | P13: 575 | Q13: 2650 | R13: = | S13: - | T13: ?? | U13: Normopeso
A14: 12 | C14: X | D14: M | E14: 2001 | F14: 44.3 | G14: 161 | H14: 17.09039003 | I14: D | K14: I | N14: -2 | O14: 170 | P14: 484 | Q14: 2409 | R14: = | S14: + | T14: ?? | U14: Sottopeso
A15: 13 | C15: X | D15: M | E15: 2002 | F15: 63.2 | G15: 168 | H15: 22.39229025 | I15: D | K15: S | N15: 5 | O15: 233 | P15: 500 | Q15: 2543 | R15: + | S15: - | T15: ?? | U15: Normopeso
A16: 14 | C16: X | D16: M | E16: 1999 | F16: 53.5 | G16: 164 | H16: =IF(C16 = "X",F16/(G16/100)^2,"") -> 19.89143367 | I16: D | K16: I | O16: 211 | P16: 532 | Q16: 2366 | R16: + | S16: ++ | T16: ?? | U16: Sottopeso
A17: 15 | C17: X | D17: M | E17: 2000 | F17: 59.1 | G17: 166 | H17: =IF(C17 = "X",F17/(G17/100)^2,"") -> 21.44723472 | I17: D | K17: I | N17: 10 | O17: 276 | P17: 466 | Q17: 2203 | R17: ++ | S17: + | T17: ?? | U17: Normopeso
A18: 16 | C18: X | D18: M | E18: 2000 | F18: 68.1 | G18: 172 | H18: =IF(C18 = "X",F18/(G18/100)^2,"") -> 23.01919957 | I18: D | K18: S | N18: -20 | O18: 190 | P18: 472 | Q18: 2366 | R18: + | S18: + | T18: ?? | U18: Normopeso
A19: 17 | C19: X | D19: M | E19: 2001 | F19: 63.4 | G19: 175 | H19: 20.70204082 | I19: D | K19: P | N19: 2 | O19: 171 | P19: 528 | Q19: 2791 | R19: + | S19: = | T19: ?? | U19: Normopeso
A20: 18 | C20: X | D20: M | E20: 2001 | F20: 68.8 | G20: 162 | H20: 26.21551593 | I20: D | K20: S | N20: -5 | O20: 147 | P20: 566 | Q20: 2866 | R20: ++ | S20: = | T20: =IF(AND(C20<>"X",B20<>""),"Assente",IF(AND(B20="",C20="X"),"??","")) -> ?? | U20: =IF(AND(C20="X",D20="M"),IF(H20<>"",IF(H20<20.7,"Sottopeso",IF(H20>27.8,"Sovrappeso","Normopeso")),""),IF(AND(C20="X",D20="F"),IF(H20<>"",IF(H20<19.1,"Sottopeso",IF(H20>27.3,"Sovrappeso","Normopeso")),""),"")) -> Normopeso
A21: 19 | C21: X | D21: M | E21: 2001 | F21: 47.2 | G21: 154 | H21: =IF(C21 = "X",F21/(G21/100)^2,"") -> 19.90217575 | I21: D | K21: S | N21: -14 | O21: 163 | P21: 518 | Q21: 2750 | R21: + | S21: = | T21: =IF(AND(C21<>"X",B21<>""),"Assente",IF(AND(B21="",C21="X"),"??","")) -> ?? | U21: =IF(AND(C21="X",D21="M"),IF(H21<>"",IF(H21<20.7,"Sottopeso",IF(H21>27.8,"Sovrappeso","Normopeso")),""),IF(AND(C21="X",D21="F"),IF(H21<>"",IF(H21<19.1,"Sottopeso",IF(H21>27.3,"Sovrappeso","Normopeso")),""),"")) -> Sottopeso
A22: 20 | C22: X | D22: M | E22: 1997 | F22: 100 | G22: 170 | H22: =IF(C22 = "X",F22/(G22/100)^2,"") -> 34.60207612 | I22: D | K22: I | N22: 3 | O22: 184 | P22: 531 | Q22: 2560 | R22: ++ | S22: + | T22: =IF(AND(C22<>"X",B22<>""),"Assente",IF(AND(B22="",C22="X"),"??","")) -> ?? | U22: =IF(AND(C22="X",D22="M"),IF(H22<>"",IF(H22<20.7,"Sottopeso",IF(H22>27.8,"Sovrappeso","Normopeso")),""),IF(AND(C22="X",D22="F"),IF(H22<>"",IF(H22<19.1,"Sottopeso",IF(H22>27.3,"Sovrappeso","Normopeso")),""),"")) -> Sovrappeso
A23: 21 | H23: =IF(C23 = "X",F23/(G23/100)^2,"") ->  | T23: =IF(AND(C23<>"X",B23<>""),"Assente",IF(AND(B23="",C23="X"),"??","")) ->  | U23: =IF(AND(C23="X",D23="M"),IF(H23<>"",IF(H23<20.7,"Sottopeso",IF(H23>27.8,"Sovrappeso","Normopeso")),""),IF(AND(C23="X",D23="F"),IF(H23<>"",IF(H23<19.1,"Sottopeso",IF(H23>27.3,"Sovrappeso","Normopeso")),""),"")) -> 
A24: 22 | H24: =IF(C24 = "X",F24/(G24/100)^2,"") ->  | T24: =IF(AND(C24<>"X",B24<>""),"Assente",IF(AND(B24="",C24="X"),"??","")) ->  | U24: =IF(AND(C24="X",D24="M"),IF(H24<>"",IF(H24<20.7,"Sottopeso",IF(H24>27.8,"Sovrappeso","Normopeso")),""),IF(AND(C24="X",D24="F"),IF(H24<>"",IF(H24<19.1,"Sottopeso",IF(H24>27.3,"Sovrappeso","Normopeso")),""),"")) -> 
A25: 23
A26: 24
A27: 25
A28: 26
A29: 27
A30: 28
A31: 29
A32: 30
B35: Alunni : | C35: =COUNTIF(B3:B32,"<>"&"") -> 0 | I35: Dx | J35: Sx | K35: S | L35: NS | M35: I
B36: Media | C36: =COUNTIF(C3:C32,"X")/C35 ->  | D36: =(COUNTIFS(D3:D32,"M",C3:C32,"X")+COUNTIFS(D3:D32,"F",C3:C32,"X"))/C39 -> 1 | E36: =AVERAGE(E3:E32) -> 2000.45 | F36: =AVERAGEIFS(F3:F32,C3:C32,"X") -> 63.76842105 | G36: =AVERAGEIFS(G3:G32,C3:C32,"X") -> 166.7894737 | H36: =AVERAGEIFS(H3:H32,C3:C32,"X") -> 22.83090116 | I36: =(COUNTIFS(I3:I32,"D",C3:C32,"X")/C39) -> 0.9473684211 | J36: =(COUNTIFS(I3:I32,"S",C3:C32,"X")/C39) -> 0.05263157895 | K36: =(COUNTIFS(K3:K32,"S",C3:C32,"X")/C39) -> 0.3157894737 | L36: =(COUNTIFS(K3:K32,"N",C3:C32,"X")/C39) -> 0.05263157895 | M36: =(COUNTIFS(K3:K32,"I",C3:C32,"X")/C39) -> 0.5789473684 | N36: =AVERAGEIFS(N3:N32,C3:C32,"X") -> -6.333333333 | O36: =AVERAGEIFS(O3:O32,C3:C32,"X") -> 186.6842105 | P36: =AVERAGEIFS(P3:P32,C3:C32,"X") -> 520.3684211 | Q36: =AVERAGEIFS(Q3:Q32,C3:C32,"X") -> 2568.842105 | R36: =COUNTIF(R$3:R$32,"=++")/COUNTIFS(R$3:R$32,"<>X",R$3:R$32,"<>") -> 0.3684210526 | S36: =COUNTIF(S$3:S$32,"=++")/COUNTIFS(S$3:S$32,"<>X",S$3:S$32,"<>") -> 0.2105263158
B37: Media maschi | C37: =COUNTIFS(C3:C32,"X",D3:D32,"M")/C35 ->  | D37: =COUNTIFS(D3:D32,"M",C3:C32,"X")/C39 -> 0.9473684211 | E37: =AVERAGEIFS(E3:E32,C3:C32,"X",D3:D32,"M") -> 2000.388889 | F37: =AVERAGEIFS(F3:F32,C3:C32,"X",D3:D32,"M") -> 64.35555556 | G37: =AVERAGEIFS(G3:G32,C3:C32,"X",D3:D32,"M") -> 166.6666667 | H37: =AVERAGEIFS(H3:H32,C3:C32,"X",D3:D32,"M") -> 23.06446241 | I37: =(COUNTIFS(I3:I32,"D",C3:C32,"X",D3:D32,"M")/COUNTIFS(D3:D32,"M",C3:C32,"X")) -> 0.9444444444 | J37: =(COUNTIFS(I3:I32,"S",C3:C32,"X",D3:D32,"M")/COUNTIFS(D3:D32,"M",C3:C32,"X")) -> 0.05555555556 | K37: =(COUNTIFS(K3:K32,"S",C3:C32,"X",D3:D32,"M")/COUNTIFS(D3:D32,"M",C3:C32,"X")) -> 0.3333333333 | L37: =(COUNTIFS(K3:K32,"N",C3:C32,"X",D3:D32,"M")/COUNTIFS(D3:D32,"M",C3:C32,"X")) -> 0 | M37: =(COUNTIFS(K3:K32,"I",C3:C32,"X",D3:D32,"M")/COUNTIFS(D3:D32,"M",C3:C32,"X")) -> 0.6111111111 | N37: =AVERAGEIFS(N3:N32,C3:C32,"X",D3:D32,"M") -> -4.941176471 | O37: =AVERAGEIFS(O3:O32,C3:C32,"X",D3:D32,"M") -> 190.1111111 | P37: =AVERAGEIFS(P3:P32,C3:C32,"X",D3:D32,"M") -> 515.6111111 | Q37: =AVERAGEIFS(Q3:Q32,C3:C32,"X",D3:D32,"M") -> 2548.333333 | R37: =COUNTIF(R$3:R$32,"=+")/COUNTIFS(R$3:R$32,"<>X",R$3:R$32,"<>") -> 0.3684210526 | S37: =COUNTIF(S$3:S$32,"=+")/COUNTIFS(S$3:S$32,"<>X",S$3:S$32,"<>") -> 0.3684210526
B38: Media femmine | C38: =COUNTIFS(C4:C32,"X",D4:D32,"F")/C35 ->  | D38: =COUNTIFS(D3:D32,"F",C3:C32,"X")/C39 -> 0.05263157895 | E38: =AVERAGEIFS(E3:E32,C3:C32,"X",D3:D32,"F") -> 2001 | F38: =AVERAGEIFS(F3:F32,C3:C32,"X",D3:D32,"F") -> 53.2 | G38: =AVERAGEIFS(G3:G32,C3:C32,"X",D3:D32,"F") -> 169 | H38: =AVERAGEIFS(H3:H32,C3:C32,"X",D3:D32,"F") -> 18.62679878 | I38: =(COUNTIFS(I3:I32,"D",C3:C32,"X",D3:D32,"F")/COUNTIFS(D3:D32,"F",C3:C32,"X")) -> 1 | J38: =(COUNTIFS(I3:I32,"S",C3:C32,"X",D3:D32,"F")/COUNTIFS(D3:D32,"F",C3:C32,"X")) -> 0 | K38: =(COUNTIFS(K3:K32,"S",C3:C32,"X",D3:D32,"F")/COUNTIFS(D3:D32,"F",C3:C32,"X")) -> 0 | L38: =(COUNTIFS(K3:K32,"N",C3:C32,"X",D3:D32,"F")/COUNTIFS(D3:D32,"F",C3:C32,"X")) -> 1 | M38: =(COUNTIFS(K3:K32,"N",C3:C32,"X",D3:D32,"F")/COUNTIFS(D3:D32,"F",C3:C32,"X")) -> 1 | N38: =AVERAGEIFS(N3:N32,C3:C32,"X",D3:D32,"F") -> -30 | O38: =AVERAGEIFS(O3:O32,C3:C32,"X",D3:D32,"F") -> 125 | P38: =AVERAGEIFS(P3:P32,C3:C32,"X",D3:D32,"F") -> 606 | Q38: =AVERAGEIFS(Q3:Q32,C3:C32,"X",D3:D32,"F") -> 2938 | R38: =COUNTIF(R$3:R$32,"==")/COUNTIFS(R$3:R$32,"<>X",R$3:R$32,"<>") -> 0.1578947368 | S38: =COUNTIF(S$3:S$32,"==")/COUNTIFS(S$3:S$32,"<>X",S$3:S$32,"<>") -> 0.3157894737
B39: Presenti | C39: =COUNTIF(C3:C32,"X") -> 19 | N39: Record | R39: =COUNTIF(R$3:R$32,"-")/COUNTIFS(R$3:R$32,"<>X",R$3:R$32,"<>") -> 0.1052631579 | S39: =COUNTIF(S$3:S$32,"-")/COUNTIFS(S$3:S$32,"<>X",S$3:S$32,"<>") -> 0.1052631579
N40: =MAX(N3:N32) -> 10 | O40: =MAX(O3:O32) -> 276 | P40: =MIN(P3:P32) -> 450 | Q40: =MIN(Q3:Q32) -> 2200 | R40: =COUNTIF(R$3:R$32,"--")/COUNTIFS(R$3:R$32,"<>X",R$3:R$32,"<>") -> 0 | S40: =COUNTIF(S$3:S$32,"--")/COUNTIFS(S$3:S$32,"<>X",S$3:S$32,"<>") -> 0
N41: =INDEX(B3:B32,MATCH(N40,N3:N32,0),1) -> 0 | O41: =INDEX(B3:B32,MATCH(O40,O3:O32,0),1) -> 0 | P41: =INDEX(B3:B32,MATCH(P40,P3:P32,0),1) -> 0 | Q41: =INDEX(B3:B32,MATCH(Q40,Q3:Q32,0),1) -> 0

Sheet MODELLO
A1: MODELLO
A2: N° | B2: Alunno | C2: Presente | D2: Sex | E2: Anno | F2: Peso | G2: Statura | H2: BMI | I2: S/D | K2: Sportivo-Nsportivo-Intermedio | N2: Flessibilità | O2: Ldf | P2: Velocità | Q2: Destrezza | R2: Volley | S2: Basket | T2: Note
A3: 1 | H3: =IF(C3 = "X",F3/(G3/100)^2,"") ->  | T3: =IF(AND(C3<>"X",B3<>""),"Assente",IF(AND(B3="",C3="X"),"??","")) ->  | U3: =IF(AND(C3="X",D3="M"),IF(H3<>"",IF(H3<20.7,"Sottopeso",IF(H3>27.8,"Sovrappeso","Normopeso")),""),IF(AND(C3="X",D3="F"),IF(H3<>"",IF(H3<19.1,"Sottopeso",IF(H3>27.3,"Sovrappeso","Normopeso")),""),"")) -> 
A4: 2 | H4: =IF(C4 = "X",F4/(G4/100)^2,"") ->  | T4: =IF(AND(C4<>"X",B4<>""),"Assente",IF(AND(B4="",C4="X"),"??","")) ->  | U4: =IF(AND(C4="X",D4="M"),IF(H4<>"",IF(H4<20.7,"Sottopeso",IF(H4>27.8,"Sovrappeso","Normopeso")),""),IF(AND(C4="X",D4="F"),IF(H4<>"",IF(H4<19.1,"Sottopeso",IF(H4>27.3,"Sovrappeso","Normopeso")),""),"")) -> 
A5: 3
A6: 4
A7: 5
A8: 6
A9: 7
A10: 8
A11: 9
A12: 10
A13: 11
A14: 12
A15: 13
A16: 14
A17: 15
A18: 16
A19: 17
A20: 18
A21: 19
A22: 20
A23: 21
A24: 22
A25: 23
A26: 24
A27: 25
A28: 26
A29: 27
A30: 28
A31: 29
A32: 30
B35: Alunni : | C35: =COUNTIF(B3:B32,"<>"&"") -> 0 | I35: Dx | J35: Sx | K35: S | L35: NS | M35: I
B36: Media | C36: =COUNTIF(C3:C32,"X")/C35 ->  | D36: =(COUNTIFS(D3:D32,"M",C3:C32,"X")+COUNTIFS(D3:D32,"F",C3:C32,"X"))/C39 ->  | E36: =AVERAGE(E3:E32) ->  | F36: =AVERAGEIFS(F3:F32,C3:C32,"X") ->  | G36: =AVERAGEIFS(G3:G32,C3:C32,"X") ->  | H36: =AVERAGEIFS(H3:H32,C3:C32,"X") ->  | I36: =(COUNTIFS(I3:I32,"D",C3:C32,"X")/C39) ->  | J36: =(COUNTIFS(I3:I32,"S",C3:C32,"X")/C39) ->  | K36: =(COUNTIFS(K3:K32,"S",C3:C32,"X")/C39) ->  | L36: =(COUNTIFS(K3:K32,"N",C3:C32,"X")/C39) ->  | M36: =(COUNTIFS(K3:K32,"I",C3:C32,"X")/C39) ->  | N36: =AVERAGEIFS(N3:N32,C3:C32,"X") ->  | O36: =AVERAGEIFS(O3:O32,C3:C32,"X") ->  | P36: =AVERAGEIFS(P3:P32,C3:C32,"X") ->  | Q36: =AVERAGEIFS(Q3:Q32,C3:C32,"X") ->  | R36: =COUNTIF(R$3:R$32,"=++")/COUNTIFS(R$3:R$32,"<>X",R$3:R$32,"<>") ->  | S36: =COUNTIF(S$3:S$32,"=++")/COUNTIFS(S$3:S$32,"<>X",S$3:S$32,"<>") -> 
B37: Media maschi | C37: =COUNTIFS(C3:C32,"X",D3:D32,"M")/C35 ->  | D37: =COUNTIFS(D3:D32,"M",C3:C32,"X")/C39 ->  | E37: =AVERAGEIFS(E3:E32,C3:C32,"X",D3:D32,"M") ->  | F37: =AVERAGEIFS(F3:F32,C3:C32,"X",D3:D32,"M") ->  | G37: =AVERAGEIFS(G3:G32,C3:C32,"X",D3:D32,"M") ->  | H37: =AVERAGEIFS(H3:H32,C3:C32,"X",D3:D32,"M") ->  | I37: =(COUNTIFS(I3:I32,"D",C3:C32,"X",D3:D32,"M")/COUNTIFS(D3:D32,"M",C3:C32,"X")) ->  | J37: =(COUNTIFS(I3:I32,"S",C3:C32,"X",D3:D32,"M")/COUNTIFS(D3:D32,"M",C3:C32,"X")) ->  | K37: =(COUNTIFS(K3:K32,"S",C3:C32,"X",D3:D32,"M")/COUNTIFS(D3:D32,"M",C3:C32,"X")) ->  | L37: =(COUNTIFS(K3:K32,"N",C3:C32,"X",D3:D32,"M")/COUNTIFS(D3:D32,"M",C3:C32,"X")) ->  | M37: =(COUNTIFS(K3:K32,"I",C3:C32,"X",D3:D32,"M")/COUNTIFS(D3:D32,"M",C3:C32,"X")) ->  | N37: =AVERAGEIFS(N3:N32,C3:C32,"X",D3:D32,"M") ->  | O37: =AVERAGEIFS(O3:O32,C3:C32,"X",D3:D32,"M") ->  | P37: =AVERAGEIFS(P3:P32,C3:C32,"X",D3:D32,"M") ->  | Q37: =AVERAGEIFS(Q3:Q32,C3:C32,"X",D3:D32,"M") ->  | R37: =COUNTIF(R$3:R$32,"=+")/COUNTIFS(R$3:R$32,"<>X",R$3:R$32,"<>") ->  | S37: =COUNTIF(S$3:S$32,"=+")/COUNTIFS(S$3:S$32,"<>X",S$3:S$32,"<>") -> 
B38: Media femmine | C38: =COUNTIFS(C4:C32,"X",D4:D32,"F")/C35 ->  | D38: =COUNTIFS(D3:D32,"F",C3:C32,"X")/C39 ->  | E38: =AVERAGEIFS(E3:E32,C3:C32,"X",D3:D32,"F") ->  | F38: =AVERAGEIFS(F3:F32,C3:C32,"X",D3:D32,"F") ->  | G38: =AVERAGEIFS(G3:G32,C3:C32,"X",D3:D32,"F") ->  | H38: =AVERAGEIFS(H3:H32,C3:C32,"X",D3:D32,"F") ->  | I38: =(COUNTIFS(I3:I32,"D",C3:C32,"X",D3:D32,"F")/COUNTIFS(D3:D32,"F",C3:C32,"X")) ->  | J38: =(COUNTIFS(I3:I32,"S",C3:C32,"X",D3:D32,"F")/COUNTIFS(D3:D32,"F",C3:C32,"X")) ->  | K38: =(COUNTIFS(K3:K32,"S",C3:C32,"X",D3:D32,"F")/COUNTIFS(D3:D32,"F",C3:C32,"X")) ->  | L38: =(COUNTIFS(K3:K32,"N",C3:C32,"X",D3:D32,"F")/COUNTIFS(D3:D32,"F",C3:C32,"X")) ->  | M38: =(COUNTIFS(K3:K32,"N",C3:C32,"X",D3:D32,"F")/COUNTIFS(D3:D32,"F",C3:C32,"X")) ->  | N38: =AVERAGEIFS(N3:N32,C3:C32,"X",D3:D32,"F") ->  | O38: =AVERAGEIFS(O3:O32,C3:C32,"X",D3:D32,"F") ->  | P38: =AVERAGEIFS(P3:P32,C3:C32,"X",D3:D32,"F") ->  | Q38: =AVERAGEIFS(Q3:Q32,C3:C32,"X",D3:D32,"F") ->  | R38: =COUNTIF(R$3:R$32,"==")/COUNTIFS(R$3:R$32,"<>X",R$3:R$32,"<>") ->  | S38: =COUNTIF(S$3:S$32,"==")/COUNTIFS(S$3:S$32,"<>X",S$3:S$32,"<>") -> 
B39: Presenti | C39: =COUNTIF(C3:C32,"X") -> 0 | N39: Record | R39: =COUNTIF(R$3:R$32,"-")/COUNTIFS(R$3:R$32,"<>X",R$3:R$32,"<>") ->  | S39: =COUNTIF(S$3:S$32,"-")/COUNTIFS(S$3:S$32,"<>X",S$3:S$32,"<>") -> 
N40: =MAX(N3:N32) -> 0 | O40: =MAX(O3:O32) -> 0 | P40: =MIN(P3:P32) -> 0 | Q40: =MIN(Q3:Q32) -> 0 | R40: =COUNTIF(R$3:R$32,"--")/COUNTIFS(R$3:R$32,"<>X",R$3:R$32,"<>") ->  | S40: =COUNTIF(S$3:S$32,"--")/COUNTIFS(S$3:S$32,"<>X",S$3:S$32,"<>") -> 
N41: =INDEX(B3:B32,MATCH(N40,N3:N32,0),1) ->  | O41: =INDEX(B3:B32,MATCH(O40,O3:O32,0),1) ->  | P41: =INDEX(B3:B32,MATCH(P40,P3:P32,0),1) ->  | Q41: =INDEX(B3:B32,MATCH(Q40,Q3:Q32,0),1) -> 
